Cogmind - Beta 17 @@@ ROGUE MODE // 2026.08.05 @ 04:21:01 Player: KURIIRI Result: Self-destructed Performance ------------- Evolutions (7) 3500 Regions Visited (26) 5200 Robots Destroyed (369) 1845 Value Destroyed (15727) 15727 Prototype IDs (73) 1460 Alien Tech Used (1) 200 Bonus (12615) 12615 TOTAL SCORE: 40547 Bonus ------- High Alert Combat Kills 263 Follower Combat Kills 1209 Network Hubs Disabled 600 Registered with UFD 300 Met Optimus in HQ 500 Met Data Miner 300 Met Warlord at Base 500 MAIN.C Attacked Warlord 500 Warlord Defense Kills 7134 Met R17 at Cetus 500 Met R17 at Research 2000 Friendly Fire -1191 Cogmind --------- Core Integrity 1136/1300 Matter 21/300 Energy 3/100 System Corruption 21% Temperature Cool (19) Movement Hovering (58) Location -3/Protoforge Parts ------- > --- POWER (2) -------- (None) > --- PROPULSION (7) --- Combat Gravmag System (fused) Combat Gravmag System Combat Gravmag System Antigrav Array Antigrav Array > --- UTILITY (10) ----- Large Storage Unit Experimental Optical Array Advanced Signal Interpreter Advanced Target Analyzer Experimental Core Analyzer Improved Weapon Shielding (fused) Advanced Force Field Ghost Barrier > --- WEAPON (2) ------- Molecular Scythe > --- INVENTORY (15) --- Antigrav Array Experimental Matter Compressor (0) Advanced Sensor Array Centrium Medium Armor Plating Dimensional Node Initializer Transdimensional Reconstructor Subatomic Replicator Vortex Rifle (35) Hardcell Cannon Hypervelocity Mass Driver Hypervelocity Mass Driver Smartbomb Launcher Advanced Remote Datajack Peak State ------------ > --- POWER ------------ Micro Antimatter Reactor Improved Quantum Reactor > --- PROPULSION ------- Combat Gravmag System Combat Gravmag System Combat Gravmag System Antigrav Array Antigrav Array > --- UTILITY ---------- Advanced Heat Sink Large Storage Unit Experimental Optical Array Makeshift Sensor Array Advanced Signal Interpreter Advanced Target Analyzer Experimental Core Analyzer Improved Phase Shifter Advanced Force Field Ghost Barrier > --- WEAPON ----------- Hardcell Cannon Hypervelocity Mass Driver > --- INVENTORY -------- Antigrav Array Experimental Matter Compressor Advanced Sensor Array Centrium Medium Armor Plating Dimensional Node Initializer Transdimensional Reconstructor Subatomic Replicator Vortex Rifle Hypervelocity Mass Driver Smartbomb Launcher Advanced Remote Datajack Molecular Scythe [Rating: 161] Favorites ----------- Power Micro Fission Core Engine Ion Engine Power Core Micro Fission Core Reactor Micro Antimatter Reactor Propulsion Combat Gravmag System Treads Light Treads Leg Aluminum Leg Wheel Wheel Hover Unit Combat Gravmag System Flight Unit VTOL Module Utility Large Storage Unit Device Improved Weapon Cycler Storage Large Storage Unit Processor Advanced Signal Interpreter Hackware Hacking Suite Protection Medium Armor Plating Weapon Subdweller Beam Cannon Energy Gun Beam Rifle Energy Cannon Subdweller Beam Cannon Ballistic Gun Assault Rifle Ballistic Cannon Hypervelocity Mass Driver Launcher Heavy Shock Bomb Launcher Special Weapon Improved Remote Datajack Impact Weapon Shock Maul Slashing Weapon Molecular Scythe Special Melee Weapon Datajack Build | -11 -10 -10 -8 -8 -6 -6 -6 -6 -6 -6 -5 -5 -5 -5 -5 -5 -5 -5 -4 -4 -4 -4 -3 -3 -3 -3 ------- Run | Yrd Mat Sub Rec Scr Fac Was Fac Low Low Dat Pro Fac Was Fac Ext Cet Arc Hub Fac Upp Upp War Pro Res Qua Frg Slots Evolved 14 | . . . . . 8 . . . . . . 2 . . . . . . 2 . . . . 2 . . Power 1 | . . . . . . . . . . . . 1 . . . . . . . . . . . . . . Propulsion 5 | . . . . . 3 . . . . . . . . . . . . . 1 . . . . 1 . . Utility 8 | . . . . . 5 . . . . . . 1 . . . . . . 1 . . . . 1 . . Weapon . | . . . . . . . . . . . . . . . . . . . . . . . . . . . Parts Attached 214 | 4 9 14 3 2 20 2 20 4 2 2 1 13 1 13 3 6 8 . 14 9 2 13 1 42 6 . Power 25 | . 1 . 1 1 . . 1 . 1 . . 2 . 2 . 1 2 . 3 . 1 3 . 6 . . Engine 5 | . 1 . 1 . . . 1 . . . . . . 1 . . 1 . . . . . . . . . Core 11 | . . . . 1 . . . . 1 . . 2 . 1 . . 1 . 2 . 1 2 . . . . Reactor 9 | . . . . . . . . . . . . . . . . 1 . . 1 . . 1 . 6 . . Propulsion 48 | 2 2 3 . . 6 2 9 . 1 . . 3 . 3 2 2 1 . 1 2 . 2 . 7 . . Treads 6 | 2 . 2 . . . . . . . . . . . . . 2 . . . . . . . . . . Leg . | . . . . . . . . . . . . . . . . . . . . . . . . . . . Wheel 3 | . 2 1 . . . . . . . . . . . . . . . . . . . . . . . . Hover 31 | . . . . . . 2 7 . 1 . . 3 . 3 2 . 1 . 1 2 . 2 . 7 . . Flight 8 | . . . . . 6 . 2 . . . . . . . . . . . . . . . . . . . Utility 93 | 1 4 3 1 . 11 . 8 3 . 1 1 7 . 5 . 3 4 . 6 4 . 7 . 20 4 . Device 40 | 1 . . . . 3 . 2 1 . 1 1 4 . 4 . 1 3 . 4 3 . 3 . 7 2 . Storage 13 | . 3 . . . 1 . 2 . . . . 1 . . . . . . . . . . . 6 . . Processor 17 | . . . . . 6 . 1 1 . . . . . . . . . . 2 1 . 2 . 3 1 . Hackware 6 | . . . . . 1 . 1 . . . . 1 . . . 1 1 . . . . 1 . . . . Protection 17 | . 1 3 1 . . . 2 1 . . . 1 . 1 . 1 . . . . . 1 . 4 1 . Artifact . | . . . . . . . . . . . . . . . . . . . . . . . . . . . Weapon 48 | 1 2 8 1 1 3 . 2 1 . 1 . 1 1 3 1 . 1 . 4 3 1 1 1 9 2 . Energy Gun 7 | 1 2 2 . . . . . . . . . . . . . . . . . . . 1 1 . . . Energy Cannon 9 | . . 3 1 . 1 . . . . . . 1 . . . . . . . . . . . 3 . . Ballistic Gun 1 | . . 1 . . . . . . . . . . . . . . . . . . . . . . . . Ballistic Cannon 10 | . . . . . . . 1 . . . . . 1 1 1 . . . 2 1 . . . 2 1 . Launcher 7 | . . 2 . . . . 1 . . . . . . . . . . . 2 1 . . . 1 . . Special Weapon 8 | . . . . . 1 . . . . 1 . . . 2 . . . . . 1 1 . . 1 1 . Impact Weapon 2 | . . . . 1 . . . 1 . . . . . . . . . . . . . . . . . . Slashing Weapon 2 | . . . . . . . . . . . . . . . . . . . . . . . . 2 . . Piercing Weapon . | . . . . . . . . . . . . . . . . . . . . . . . . . . . Special Melee Weapon 2 | . . . . . 1 . . . . . . . . . . . 1 . . . . . . . . . Unidentified Prototypes 29 | . . . . . . . 1 1 . . . . . 1 . 2 . . 1 . 1 5 . 16 1 . Corrupted Parts 2 | . . . . . . . . . . . . . . . . 1 . . . . . . . 1 . . System Corruption 16 | . . . . . . . . . . . . . . . . 4 . . . . . . . 12 . . Parts Lost 44 | . . 3 1 . 1 . 11 . . . 1 2 . 2 1 3 . 4 3 1 . 4 1 3 . 3 Power 9 | . . . 1 . . . 1 . . . . 1 . . . 1 . 1 1 . . 1 . . . 2 Propulsion 12 | . . . . . 1 . 4 . . . . 1 . . . . . . . 1 . 3 1 1 . . Utility 14 | . . 1 . . . . 4 . . . 1 . . 2 . 1 . 1 1 . . . . 2 . 1 Weapon 9 | . . 2 . . . . 2 . . . . . . . 1 1 . 2 1 . . . . . . . Highest Loss Streak 5 | . . 1 1 . 1 . 5 . . . 1 1 . 1 1 3 . 4 1 2 . 2 1 1 . 3 To Critical Strikes . | . . . . . . . . . . . . . . . . . . . . . . . . . . . Average Backups 14 | 4 17 11 22 21 8 9 11 11 12 14 13 13 14 14 14 13 12 14 13 9 10 13 13 12 11 12 Power . | 1 . . 1 1 1 . . . 1 1 1 . . . 1 1 1 2 . . . 1 2 1 . . Propulsion 2 | 2 6 4 6 5 1 2 . . . . . 1 2 2 2 4 3 4 2 . 1 1 2 1 1 1 Utility 4 | . 4 2 7 7 3 4 5 6 6 8 7 6 4 4 4 2 2 2 4 4 4 5 5 3 3 3 Weapon 3 | 1 5 3 6 5 1 2 3 3 3 3 3 2 4 4 3 2 2 2 3 3 3 4 3 4 3 4 Tool/Special . | . . . . . . . . . . . . . . . . . . . . . . . . . . . Unused Backups 61 | 7 6 6 1 5 4 . 1 2 . . . 6 1 1 . 2 . 1 5 . 1 1 . 4 1 6 Power 8 | 1 . . . . 2 . . . . . . 1 . . . . . . . . 1 . . 2 1 . Propulsion 16 | 4 2 . 1 1 . . . . . . . 1 1 1 . 1 . . 2 . . . . 1 . 1 Utility 16 | 1 1 1 . . 2 . . 2 . . . 2 . . . 1 . . 3 . . . . 1 . 2 Weapon 18 | 1 3 5 . 4 . . 1 . . . . 2 . . . . . 1 . . . 1 . . . . Tool/Special 3 | . . . . . . . . . . . . . . . . . . . . . . . . . . 3 Average Slot Usage (%) 92 | . 99 89 97 99 95 95 87 85 91 93 90 94 100 98 100 88 85 92 91 96 94 92 93 89 87 86 Engine 5 | . 14 14 11 12 . . 2 6 5 . . . . 1 . . . 5 2 . . . . . . . Core 3 | . . . . 1 6 6 3 . . 6 6 9 11 8 11 8 5 4 5 5 8 7 10 1 . . Reactor 1 | . . . . . . . . . . . . . . . . 1 . . 2 5 1 2 . 7 9 8 Treads 7 | . 14 21 14 14 . . . . . . . . . . . 7 1 . . . . . . . . . Wheel 4 | . 12 6 14 14 . . . . . . . . . . . . . . . . . . . . . . Hover 15 | . . . . . . 7 22 20 24 26 26 28 29 29 29 11 19 23 27 30 31 29 26 27 23 23 Device 8 | . 2 . . . 12 13 7 12 7 6 10 13 23 18 17 14 13 10 15 17 15 14 15 14 14 12 Storage 7 | . 14 4 14 14 6 6 6 6 6 6 6 5 5 5 5 5 5 5 5 5 5 5 5 4 4 4 Processor 9 | . . . . . 18 20 19 19 20 20 20 13 11 11 11 11 11 11 10 12 15 15 15 14 16 19 Hackware 3 | . . . . . 5 6 7 6 6 6 6 9 5 5 5 5 5 11 9 5 5 5 5 4 4 4 Protection 7 | . 11 13 14 14 . . 3 . 5 6 1 . . 3 5 6 6 5 5 5 5 5 5 5 3 4 Energy Gun 1 | . 23 4 . . . . . . . . . . . . . . . . . . . 1 . . . . Energy Cannon 8 | . . 18 26 26 2 . 1 3 6 6 5 5 1 . . . . . . . . . . . . . Ballistic Cannon 1 | . . . . . . . 1 . . . . . 2 4 3 9 6 4 4 1 . . 4 4 7 1 Launcher 1 | . . 4 . . . . . 2 . . . . . . . . . . . 4 3 3 5 . . . Impact Weapon 1 | . . . . . 6 6 4 5 6 4 4 4 5 4 5 . . 4 . . . . . . . . Peak Build Rating 161 | 7 15 16 19 22 50 53 79 68 72 72 72 94 94 103 103 122 122 101 121 114 115 127 118 160 161 159 Average Rating 65 | 6 12 12 16 18 44 50 60 65 69 71 68 85 93 99 102 110 95 100 111 107 110 116 115 135 153 154 On Entrance 76 | 6 7 15 16 19 18 46 53 57 64 72 70 70 93 94 103 102 122 99 78 103 109 97 123 116 148 158 Avg Prop Armor Cover (%) 7 | . 9 10 9 9 . 7 4 . . . . 3 . . . 1 1 . . 3 . 1 3 . . . Naked Turns . | . . . . . . . . . . . . . . . . . . . . . . . . . . . Heaviest Build 108 | 13 98 108 108 108 32 33 57 46 52 49 49 52 52 70 63 88 88 56 77 76 69 68 71 99 92 85 Greatest Support 160 | 40 40 40 10 10 33 38 70 51 61 52 52 61 59 64 67 160 160 66 81 81 78 91 68 103 97 97 Greatest Overweight (x) 10 | . 8 10 10 10 . . 1 1 . . . . . 1 . 1 . . 1 1 . . 1 1 . . Average Overweight (x) 1 | . 1 2 9 9 . . . . . . . . . . . . . . . . . . . . . . Largest Inventory Capacity 25 | 8 25 25 25 25 20 15 20 15 15 15 15 15 15 15 15 15 15 15 15 15 15 15 15 15 15 15 Average Capacity 16 | 8 19 12 25 24 10 13 15 15 15 15 15 15 15 15 15 15 15 15 15 15 15 15 15 15 15 15 Most Carried 25 | 6 25 25 25 25 18 11 15 15 14 14 15 15 15 15 15 15 15 15 15 15 15 15 15 15 15 15 Average Carried 15 | 4 17 11 24 23 8 10 11 11 12 14 13 14 14 14 14 14 12 14 14 12 13 14 14 14 13 14 Final Capacity 25 | 8 25 25 25 20 10 15 15 15 15 15 15 15 15 15 15 15 15 15 15 15 15 15 15 15 15 15 Final Carried 25 | 4 25 25 25 19 10 11 15 10 14 14 13 14 15 15 14 15 15 15 15 14 14 15 15 13 15 15 Class Distribution -------------------- 36% | Mutant 17% | Scavenger-Scout 11% | Hacker-Scout 11% | Scout 8% | Machinist-Scout 4% | Subdweller-Mutant 3% | Commander-Scout Dominant Class ---------------- Mutant | -10/Materials Mutant | -10/Subcaves Mutant | -8/Recycling Mutant | -8/Scraptown Scout | -6/Factory Scout | -6/Waste Scout | -6/Factory Machinist-Scout | -6/Lower Caves Machinist-Scout | -6/Lower Caves Machinist-Scout | -6/Data Miner Scout | -5/Proximity Caves Hacker-Scout | -5/Factory Scout | -5/Waste Scout | -5/Factory Commander-Scout | -5/Extension Commander-Skirmisher | -5/Cetus Scavenger-Mutant | -5/Archives Commander-Mutant | -5/Hub_04(d) Hacker-Scout | -4/Factory Scavenger-Scout | -4/Upper Caves Scavenger-Scout | -4/Upper Caves Hacker-Scout | -4/Warlord Hacker-Scout | -3/Proximity Caves Scavenger-Scout | -3/Research Scavenger-Scout | -3/Quarantine Scavenger-Scout | -3/Protoforge Resources | -11 -10 -10 -8 -8 -6 -6 -6 -6 -6 -6 -5 -5 -5 -5 -5 -5 -5 -5 -4 -4 -4 -4 -3 -3 -3 -3 ----------- Run | Yrd Mat Sub Rec Scr Fac Was Fac Low Low Dat Pro Fac Was Fac Ext Cet Arc Hub Fac Upp Upp War Pro Res Qua Frg Matter Collected 13932 | 266 179 535 40 10 198 376 416 278 40 . 175 238 178 1531 889 308 533 253 1231 1033 369 1425 552 2246 451 182 Remotely . | . . . . . . . . . . . . . . . . . . . . . . . . . . . Salvage Created 16112 | 166 491 729 422 . 198 . 594 98 116 . 284 752 1232 1633 1444 546 364 290 1157 700 578 1700 982 1263 259 114 Parts 565 | 12 31 42 22 . 2 . 29 1 11 . 15 19 7 48 38 18 27 9 58 19 14 47 29 45 13 9 Haulers Intercepted 11 | . 1 . . . . . . . . . . . . 3 4 . . . 1 . . . . 2 . . Recyclers Shooed 12 | . . . 2 . . . . . . . . 1 . 2 1 . . . 6 . . . . . . . Parts Field Recycled . | . . . . . . . . . . . . . . . . . . . . . . . . . . . Retrieved Matter . | . . . . . . . . . . . . . . . . . . . . . . . . . . . Parts Self-Destructed 52 | . . 15 . . . . . . 5 . 10 . . . . . . . . . 12 . 10 . . . Prevented 24 | . . . . . . . . 3 . . . . . . . . . . . 9 1 . 11 . . . Parts Restored . | . . . . . . . . . . . . . . . . . . . . . . . . . . . Kills | -11 -10 -10 -8 -8 -6 -6 -6 -6 -6 -6 -5 -5 -5 -5 -5 -5 -5 -5 -4 -4 -4 -4 -3 -3 -3 -3 ------- Run | Yrd Mat Sub Rec Scr Fac Was Fac Low Low Dat Pro Fac Was Fac Ext Cet Arc Hub Fac Upp Upp War Pro Res Qua Frg Combat Hostiles Destroyed 282 | . 13 22 4 . 1 . 19 1 2 . 22 3 5 13 10 7 4 5 26 7 15 59 23 14 4 3 Melee 1 | . . . . . . . . . . . . 1 . . . . . . . . . . . . . . Guns 14 | . 13 1 . . . . . . . . . . . . . . . . . . . . . . . . Cannons 91 | . . 10 4 . 1 . 4 1 2 . 1 1 1 11 9 7 4 5 10 1 2 . . 13 4 . AOE 166 | . . 10 . . . . 12 . . . 20 . 4 2 . . . . 16 6 13 59 20 1 . 3 Classes Destroyed 32 | 3 4 3 1 . 1 . 3 2 1 . 2 1 1 . 2 . . . . . 1 6 1 . . . Worker 15 | 2 . . . . 2 . 4 . . . . . . 2 . . . 1 2 . . . . 2 . . Builder 9 | . . . . . . . 2 . . . . . . 1 3 . . . 2 . . . . . . 1 Tunneler 7 | 4 . . . . . . 1 . . . . 1 . 1 . . . . . . . . . . . . Hauler 11 | . 1 . . . . . . . . . . . . 3 4 . . . 1 . . . . 2 . . Recycler 21 | 1 . . 2 . 1 . 1 . . . . 4 . 5 3 . . . 4 . . . . . . . Minesweeper 3 | . . . . . . . . 1 . . . . . . . . . . . 2 . . . . . . Mechanic 1 | . . . . . . . 1 . . . . . . . . . . . . . . . . . . . Operator 7 | . 2 . . . . . . . . . . . . . . . 4 . . . . . . . . 1 Drone 2 | . . . . . . . . . . . . . . . . . . . . . . . 2 . . . Turret 2 | . . 2 . . . . . . . . . . . . . . . . . . . . . . . . Watcher 13 | . . . . . . . . . . . . 2 . 3 2 . . . 2 . . . . 2 1 1 Swarmer 70 | . 6 3 . . . . 11 . . . 10 . . 1 1 . . . 13 . 6 7 9 . . 3 Cutter 3 | . . . . . . . 3 . . . . . . . . . . . . . . . . . . . Saboteur 4 | . . . . . . . . . . . . . . . . . . . . . . 4 . . . . Grunt 88 | . 7 . . . . . 1 1 . . 2 2 . 8 6 . . 5 5 5 1 25 9 8 3 . Brawler 9 | . . . . . . . . . . . 1 . . . . . . . . 1 2 4 . 1 . . Duelist 6 | . . . . . . . . . . . . . . . 1 . . . . . . 2 2 1 . . Protector 7 | . . . . . . . . . . . . . . . . . . . . . . 7 . . . . Sentry 17 | . . . 4 . . . 1 . . . . . . 1 1 . 4 . 1 1 1 . 1 2 . . Demolisher 1 | . . . . . . . . . . . . . . . . . . . . . . 1 . . . . Specialist 5 | . . . . . . . . . . . . . . . . . . . . . 2 3 . . . . Hunter 6 | . . . . . . . . . . . . . . . 1 . . . . . 2 2 . 1 . . Programmer 19 | . . . . . 1 . 3 . 1 . . 1 . 3 . . . . 7 . 1 1 . . 1 . Behemoth 1 | . . . . . . . . . . . . . . . . . . . . . . 1 . . . . Compactor 5 | . . . . . . . . . . . . . 5 . . . . . . . . . . . . . Cetus Guard 7 | . . . . . . . . . . . . . . . . 7 . . . . . . . . . . Striker 2 | . . . . . . . . . . . . . . . . . . . . . . 1 . 1 . . Executioner 1 | . . . . . . . . . . . . . . . . . . . . . . 1 . . . . Artisan 1 | . . 1 . . . . . . . . . . . . . . . . . . . . . . . . Subdweller 19 | . . 19 . . . . . . . . . . . . . . . . . . . . . . . . Packrat 1 | . . . . . . . . . . . . . . . . . . . . . 1 . . . . . Samaritan 6 | . . . . . . . . 1 . . . . . . . . . . . 5 . . . . . . Assembled 9 | . . . . . . . . . . . 9 . . . . . . . . . . . . . . . Wasp 1 | . . . . . . . . . . . . . . . . . . . . . . 1 . . . . Thug 3 | . . . . . . . . . . . . . . . . 1 . . . . . 2 . . . . Savage 2 | . . . . . . . . . . . . . . . 1 1 . . . . . . . . . . Butcher 1 | . . . . . . . . . . . . . . . 1 . . . . . . . . . . . Fireman 1 | . . . . . . . . . 1 . . . . . . . . . . . . . . . . . Best Kill Streak 13 | 4 4 5 3 . 1 . 11 1 1 . 11 7 5 5 5 4 2 6 6 4 5 13 5 5 3 4 Combat Bots Only 13 | . 3 3 1 . 1 . 7 1 1 . 11 2 5 4 4 4 2 5 5 4 5 13 5 4 3 3 Max Kills in Single Turn 10 | 1 2 1 1 . 1 . 4 1 1 . 10 1 2 2 2 2 1 2 4 1 3 4 3 2 1 3 Gunslinging 1 | . 1 . . . . . . . . . . . . . . . . . . . . . . . . . Exploded 10 | . . 1 . . . . 3 . . . 10 . 2 1 . . . . 4 1 3 4 3 1 . 3 Melee 1 | . . . . . . . . . . . . 1 . . . . . . . . . . . . . . Uniques/NPCs Destroyed . | . . . . . . . . . . . . . . . . . . . . . . . . . . . Combat | -11 -10 -10 -8 -8 -6 -6 -6 -6 -6 -6 -5 -5 -5 -5 -5 -5 -5 -5 -4 -4 -4 -4 -3 -3 -3 -3 -------- Run | Yrd Mat Sub Rec Scr Fac Was Fac Low Low Dat Pro Fac Was Fac Ext Cet Arc Hub Fac Upp Upp War Pro Res Qua Frg Hostile Shots Fired 828 | . 39 79 10 . 15 . 111 9 4 . 15 14 . 41 48 9 10 41 88 13 6 47 25 89 62 53 Missed 307 | . 11 30 2 . 6 . 37 2 2 . 6 3 . 9 20 2 3 11 37 3 3 14 11 37 29 29 Hits 521 | . 28 49 8 . 9 . 74 7 2 . 9 11 . 32 28 7 7 30 51 10 3 33 14 52 33 24 Melee 18 | . . . . . . . 5 . . . . . . . . . . 2 1 . . . . 10 . . Projectile 503 | . 28 49 8 . 9 . 69 7 2 . 9 11 . 32 28 7 7 28 50 10 3 33 14 42 33 24 AOE 16 | . . 3 . . . . 3 . . . . . . . . . . 2 1 . . 5 . . . 2 Critical Strikes 42 | . . 2 . . . . 4 . . . . 1 . 2 1 2 . 7 8 . . 3 . 4 4 4 Actively Blocked 2 | . . . . . . . . . . . . . . . . . . . . . . . . . 2 . Part Disruptions 4 | . . . . . . . . . . . . 1 . . . . . . . 1 . . 1 . . 1 Damage Taken 11856 | . 303 1270 126 . 83 . 1942 159 29 . 136 214 . 702 556 271 185 1098 1246 132 148 1138 424 922 387 385 Core 1338 | . 47 173 . . 26 . 300 54 . . . 20 . 125 38 25 . 75 58 24 69 123 17 104 28 32 Absorbed by Shields 1130 | . . . . . . . . . . . . . . . 44 . . . . 32 . 22 . 470 351 211 Reduced by Siege Mode 28 | . . . . . . . . . . . . . . . . 8 20 . . . . . . . . . Redirected to Shielding 136 | . . . . . . . . . . . . . . . . . . . . . . . . 64 62 10 Regen/Repaired (Parts) 1968 | . 61 . . . . . 36 . . . . 145 . 451 . . . . 244 . . 826 . 205 . . Core Remaining (%) 62 | 100 . . . 12 . . . . . . 55 . . . . . . 71 . . . . 74 . . . Volleys Fired 1031 | 24 29 112 12 . 13 . 35 9 16 1 15 27 7 88 94 27 47 13 103 43 34 64 32 126 51 9 Largest 2 | 2 2 2 2 . 1 . 2 1 1 1 1 1 1 2 1 2 2 1 2 2 1 1 2 1 2 1 Hottest 160 | 70 112 160 160 . 90 . 134 90 90 5 90 90 51 107 56 107 98 51 110 102 55 55 101 56 112 46 Shots Fired 1182 | 48 58 141 16 . 13 . 42 9 16 1 15 27 8 91 94 38 63 13 113 47 35 64 33 122 67 8 Gun 144 | 48 58 38 . . . . . . . . . . . . . . . . . . . . . . . . Cannon 742 | . . 75 16 . 13 . 34 9 16 . 9 26 2 81 80 36 32 13 101 8 4 4 1 118 64 . Launcher 218 | . . 28 . . . . 8 . . . 6 . 6 3 1 . . . 11 38 16 60 32 2 . 7 Special 78 | . . . . . . . . . . 1 . 1 . 7 13 2 31 . 1 1 15 . . 2 3 1 Kinetic 586 | 24 11 . . . . . 7 . . . . . 2 81 80 36 32 13 101 8 4 4 1 118 64 . Thermal 323 | 17 47 113 15 . 13 . 27 9 16 . 9 26 . . . . 31 . . . . . . . . . Explosive 157 | . . 28 . . . . 8 . . . 6 . 6 3 1 . . . 11 5 11 60 9 2 . 7 Electromagnetic 69 | 7 . . 1 . . . . . . . . . . . . . . . . 33 5 . 23 . . . Robot Hit Streak 33 | 3 13 17 16 . 6 . 4 2 2 3 9 6 7 8 8 20 33 3 10 9 7 20 22 8 5 5 Robot Miss Streak 5 | 3 5 1 1 . . . 3 1 4 . 1 . . 3 4 2 1 2 4 3 1 . 1 2 3 . Penetration Max 2 | . . . . . . . . . . . . . . 2 1 1 1 2 . . . . . 1 1 . Secondary Targets 3 | . 3 . . . . . . . . . . . . . . . . . . . . . . . . . Max Gunslinging Chain 1 | . 1 . . . . . . . . . . . . . . . . . . . . . . . . . Shots Hit Robots 652 | 24 39 65 14 . 9 . 28 5 4 1 7 18 1 70 73 29 59 9 59 20 8 13 5 69 19 4 Core Hits 667 | 7 24 34 6 . 1 . 22 1 4 . 30 6 10 29 26 18 22 7 47 21 36 220 43 39 7 7 Critical Kills 74 | . . 1 . . . . . . . . . 2 1 16 12 9 6 5 . . . . . 17 5 . Critical Parts Destroyed 98 | 1 . . . . 1 . 1 1 . . . 5 . 25 20 7 2 4 . . . . . 22 9 . Critical Strikes 205 | 2 5 1 . . 1 . 2 1 . . . 7 1 44 33 20 12 9 7 . 1 . . 43 16 . Burn 6 | 1 5 . . . . . . . . . . . . . . . . . . . . . . . . . Meltdown 1 | . . 1 . . . . . . . . . . . . . . . . . . . . . . . . Destroy 167 | 1 . . . . . . . . . . . . 1 43 24 20 12 9 . . . . . 43 14 . Blast 12 | . . . . . . . 1 . . . . . . . 1 . . . 7 . 1 . . . 2 . Smash 19 | . . . . . 1 . 1 1 . . . 7 . 1 8 . . . . . . . . . . . Melee Attacks 231 | . . . . . 29 . 46 7 5 . 1 33 . 24 23 . 8 8 . . . . . 11 6 30 Impact 170 | . . . . . 27 . 42 7 5 . 1 33 . 24 23 . . 8 . . . . . . . . Slashing 47 | . . . . . . . . . . . . . . . . . . . . . . . . 11 6 30 Piercing . | . . . . . . . . . . . . . . . . . . . . . . . . . . . Sneak Attacks 40 | . . . . . 4 . 6 2 . . . 4 . 5 8 . 8 . . . . . . 1 . 2 Combat Hostiles . | . . . . . . . . . . . . . . . . . . . . . . . . . . . Follow-up Attacks . | . . . . . . . . . . . . . . . . . . . . . . . . . . . Damage Inflicted 52050 | 356 562 2551 382 . 421 . 3066 273 91 . 2404 1095 1978 2520 3072 602 804 213 4890 1911 2480 16647 2788 1744 389 811 Guns 966 | 328 545 93 . . . . . . . . . . . . . . . . . . . . . . . . Cannons 11664 | . . 1312 382 . 171 . 445 96 91 . 223 146 18 1105 1331 602 633 213 2590 235 144 . . 1538 389 . Explosions 34237 | 28 . 1146 . . . . 1677 . . . 2181 . 1960 529 331 . . . 2300 1676 2336 16647 2788 128 . 510 Melee 4995 | . . . . . 250 . 944 177 . . . 949 . 886 1410 . . . . . . . . 78 . 301 Ramming 17 | . 17 . . . . . . . . . . . . . . . . . . . . . . . . . Kinetic 9169 | 105 124 . . . . . 142 . . . . . 18 1105 1331 602 633 213 2590 235 144 . . 1538 389 . Thermal 5068 | 181 421 1405 361 . 171 . 546 96 91 . 1047 146 . 254 . . 171 . . . . . 178 . . . Explosive 30800 | . . 1146 . . . . 1434 . . . 1357 . 1960 275 331 . . . 2300 799 2164 16647 1749 128 . 510 Electromagnetic 2001 | 70 . . 21 . . . . . . . . . . . . . . . . 877 172 . 861 . . . Impact 4616 | . . . . . 250 . 944 177 . . . 949 . 886 1410 . . . . . . . . . . . Slashing 379 | . . . . . . . . . . . . . . . . . . . . . . . . 78 . 301 Piercing . | . . . . . . . . . . . . . . . . . . . . . . . . . . . Highest Corruption 21 | . . . . . 1 1 9 5 . . . 1 9 9 6 10 10 10 5 5 6 6 1 18 21 21 Average Corruption 7 | . . . . . 1 1 3 3 . . . 1 7 6 6 8 6 7 3 5 5 6 1 15 18 21 Corruption Purged 17 | . . . . . . . . 4 . . . . . 3 . . 10 . . . . . . . . . Corruption Blocked . | . . . . . . . . . . . . . . . . . . . . . . . . . . . Effects 297 | . . . . . 1 2 17 6 . . . 3 1 27 24 10 14 2 18 23 25 . 6 74 27 17 Message Errors 71 | . . . . . . 1 3 3 . . . 1 . 10 4 3 5 . 3 10 6 . 3 17 . 2 Matter Fused 60 | . . . . . 1 1 2 1 . . . . . 9 7 . 2 . 7 3 2 . 1 11 9 4 Heat Flow Errors 28 | . . . . . . . 2 1 . . . 1 . 2 2 . 2 1 1 1 3 . 1 7 2 2 Energy Discharges 39 | . . . . . . . 5 1 . . . 1 . . 5 2 1 . 4 2 5 . 1 7 5 . Parts Rejected 7 | . . . . . . . . . . . . . . 1 1 1 . . . . . . . 3 . 1 Parts Fused 5 | . . . . . . . 1 . . . . . . . . . . . . 1 . . . 2 . 1 Data Loss (minor) 44 | . . . . . . . 4 . . . . . . 2 3 3 2 . . 2 7 . . 14 3 4 Data Loss (major) 12 | . . . . . . . . . . . . . . 1 2 . . . . 1 1 . . 5 1 1 Misfires 12 | . . . . . . . . . . . . . 1 1 . 1 2 . 2 1 1 . . 1 2 . Alerts 6 | . . . . . . . . . . . . . . . . . . . 1 2 . . . 2 1 . Misdirections 6 | . . . . . . . . . . . . . . . . . . 1 . . . . . . 4 1 Weapon Failures 7 | . . . . . . . . . . . . . . 1 . . . . . . . . . 5 . 1 Overload Shots . | . . . . . . . . . . . . . . . . . . . . . . . . . . . Overflow Damage 3665 | 13 . 45 . . 180 . 746 92 . . 103 467 . 307 934 . . . 339 34 15 256 61 . . 73 Projectiles 250 | . . . . . . . 33 . . . . 9 . . 13 . . . 195 . . . . . . . Explosions 1020 | 13 . 45 . . . . 281 . . . 103 . . 19 43 . . . 144 34 15 256 61 . . 6 Melee 2395 | . . . . . 180 . 432 92 . . . 458 . 288 878 . . . . . . . . . . 67 Knockbacks 63 | . . . . . . . 4 1 . . . 2 . 9 14 . 2 1 23 . . . . 7 . . Impact 17 | . . . . . . . 4 1 . . . 2 . 4 6 . . . . . . . . . . . Kinetic 44 | . . . . . . . . . . . . . . 4 8 . 2 1 22 . . . . 7 . . Secondary 2 | . . . . . . . . . . . . . . 1 . . . . 1 . . . . . . . Self-Inflicted Damage 625 | . . 84 . . . . 296 . . . . . . 33 64 . . . . 46 . . 102 . . . Shots 19 | . . 3 . . . . 6 . . . . . . 1 1 . . . . 3 . . 5 . . . Rammed 2 | . 1 . . . . . . . . . . . . . . . . 1 . . . . . . . . Targets Rammed 2 | . 1 . . . . . . . . . . . . . . . . 1 . . . . . . . . Kicked . | . . . . . . . . . . . . . . . . . . . . . . . . . . . Crushed . | . . . . . . . . . . . . . . . . . . . . . . . . . . . Highest Temperature 416 | 153 294 314 225 . 210 1 386 237 162 . 300 218 56 182 221 80 236 118 416 164 234 371 110 252 121 214 Average Temperature 73 | 76 94 68 92 . 50 1 115 92 67 . 87 65 26 44 53 24 56 67 97 34 70 53 17 62 44 93 Received Heat Transfer 1651 | . 114 216 27 . 6 . 108 48 . . 18 81 . 169 67 . 36 90 129 12 . 397 27 68 17 21 Effects 9 | . . 1 . . 1 . 2 . . . . . . . . . . . 4 . . 1 . . . . Shutdowns 2 | . . . . . . . . . . . . . . . . . . . 1 . . 1 . . . . Energy Bleed 2 | . . 1 . . 1 . . . . . . . . . . . . . . . . . . . . . Interference 5 | . . . . . . . 2 . . . . . . . . . . . 3 . . . . . . . Siege Activations 4 | . . . . . . . . . . . . . . . . 1 3 . . . . . . . . . Total Turns 61 | . . . . . . . . . . . . . . . . 29 32 . . . . . . . . . Longest Duration 29 | . . . . . . . . . . . . . . . . 29 13 . . . . . . . . . Martial Activations . | . . . . . . . . . . . . . . . . . . . . . . . . . . . Shielding Activations . | . . . . . . . . . . . . . . . . . . . . . . . . . . . Robots Disrupted 1 | . . . . . . . . . . . . . . . . . 1 . . . . . . . . . Combat Hostiles . | . . . . . . . . . . . . . . . . . . . . . . . . . . . Robots Corrupted 32 | . . . . . 1 . 6 1 . . . 4 . 5 8 . . . . 4 . . 3 . . . Combat Hostiles 8 | . . . . . . . 3 . . . . 1 . . 1 . . . . . . . 3 . . . Parts Fried 65 | . . . . . 3 . 6 4 . . . 8 . 7 13 . . . . 15 1 1 7 . . . Impact Corruptions 68 | . . . . . 6 . 17 5 . . . 10 . 11 19 . . . . . . . . . . . Robots Melted 2 | . . 1 . . . . . . . . 1 . . . . . . . . . . . . . . . Combat Hostiles 2 | . . 1 . . . . . . . . 1 . . . . . . . . . . . . . . . Parts Melted 20 | 4 5 7 1 . 1 . . . . . . . . 1 . . 1 . . . . . . . . . Heat Transferred 7806 | 568 1443 1986 481 . 200 . 550 150 200 . 1230 148 . 200 . . 600 . . . . . 50 . . . Parts Sabotaged . | . . . . . . . . . . . . . . . . . . . . . . . . . . . Parts Stolen . | . . . . . . . . . . . . . . . . . . . . . . . . . . . Parts Stripped . | . . . . . . . . . . . . . . . . . . . . . . . . . . . Power Chain Reactions 5 | 1 . . . . . . . . . . . . . . . . . . . 1 1 . 2 . . . Alert | -11 -10 -10 -8 -8 -6 -6 -6 -6 -6 -6 -5 -5 -5 -5 -5 -5 -5 -5 -4 -4 -4 -4 -3 -3 -3 -3 ------- Run | Yrd Mat Sub Rec Scr Fac Was Fac Low Low Dat Pro Fac Was Fac Ext Cet Arc Hub Fac Upp Upp War Pro Res Qua Frg Maximum Alert Level 3 | . . . . . . . 2 . . . . . . 3 2 1 . . 3 . . . . 1 1 2 Low Security (%) 66 | 100 100 . 100 . 100 100 68 . . . . 100 100 23 61 . 100 100 69 . . . . . 97 46 Level 1 26 | . . . . . . . 29 . . . . . . 15 34 99 . . 14 . . . . 99 2 42 Level 2 5 | . . . . . . . 1 . . . . . . 44 3 . . . 9 . . . . . . 10 Level 3 1 | . . . . . . . . . . . . . . 16 . . . . 6 . . . . . . . Level 4 . | . . . . . . . . . . . . . . . . . . . . . . . . . . . Level 5 . | . . . . . . . . . . . . . . . . . . . . . . . . . . . High Security . | . . . . . . . . . . . . . . . . . . . . . . . . . . . Max Security . | . . . . . . . . . . . . . . . . . . . . . . . . . . . Peak Influence 981 | 10 155 . 27 . 62 3 437 . . . . 76 66 789 474 297 128 111 981 . . . . 370 216 421 Initial 261 | . . . 6 . . 3 . . . . . . 4 32 209 261 76 . 5 . . . . 256 198 117 Average 146 | 3 47 . 2 . 14 . 131 . . . . 25 38 409 150 240 46 15 176 . . . . 281 151 260 Influence Increases 11031 | 35 368 160 105 . 157 . 1166 175 30 . 300 282 66 1348 946 211 99 241 1357 160 320 1301 710 690 340 464 Destroy 0b10 Robot/C 5520 | . 260 100 80 . 20 . 380 20 20 . 260 60 . 580 520 160 80 100 520 140 300 1080 420 280 80 60 Destroy 0b10 Robot/NC 510 | 35 15 . 10 . 15 . 45 5 . . 10 35 . 85 70 5 5 5 55 10 10 35 10 30 5 15 Destroy Leader 634 | . 62 . . . 10 . 90 . 10 . 30 24 . 114 56 . . 10 96 10 10 . 40 48 12 12 Allied During Kill 601 | . . . . . . . . . . . . . . 215 218 44 4 24 . . . 96 . . . . Successful Hack 367 | . . . 13 . 14 . 50 . . . . 26 . 38 7 . . . 62 . . . . 77 21 59 Select Force Hacks 30 | . . . . . . . . . . . . 30 . . . . . . . . . . . . . . Disable Machine 510 | . . . . . 15 . 75 . . . . . . 90 . . . 15 225 . . . . 15 75 . Destroy Structure 1254 | . 1 . 2 . 23 . 166 . . . . 62 66 166 60 2 10 12 384 . . . . 120 42 138 Partial Spotted 75 | . . . . . . . 30 . . . . 30 . . . . . 15 . . . . . . . . Lose Combat Pursuer 1530 | . 30 60 . . 60 . 330 150 . . . 15 . 60 15 . . 60 15 . . 90 240 120 105 180 Influence Decreases 10650 | 35 368 146 119 . 148 9 753 588 30 . 300 269 33 966 906 487 291 229 393 740 456 610 1281 716 486 291 Entered New Map 2759 | . . . 8 . . 6 . 153 . . . . 9 14 219 207 116 . 7 362 76 260 951 124 156 91 Time Decay 6039 | 35 368 146 111 . 147 3 345 435 30 . 290 259 24 422 315 170 175 58 346 368 380 260 320 562 310 160 Lost Part 356 | . . . . . 1 . 105 . . . 10 10 . 20 10 30 . 20 30 10 . 40 10 30 . 30 Lost Ally 467 | . . . . . . . 23 . . . . . . 60 174 80 . 40 10 . . 50 . . 20 10 Purge Threat 1029 | . . . . . . . 280 . . . . . . 450 188 . . 111 . . . . . . . . Squads Dispatched 84 | . 3 . . . 9 . 16 . . . . 9 . 15 2 . . 6 7 . . . . 12 3 2 Investigation 41 | . 1 . . . 7 . 6 . . . . 7 . 9 . . . 2 1 . . . . 8 . . Extermination 15 | . . . . . 1 . 3 . . . . 2 . 3 . . . . 3 . . . . . 2 1 Reinforcement 23 | . 2 . . . 1 . 6 . . . . . . 2 2 . . 2 2 . . . . 4 1 1 Assault 4 | . . . . . . . . . . . . . . 1 . . . 2 1 . . . . . . . Garrison 1 | . . . . . . . 1 . . . . . . . . . . . . . . . . . . . Intercept . | . . . . . . . . . . . . . . . . . . . . . . . . . . . Searches Triggered . | . . . . . . . . . . . . . . . . . . . . . . . . . . . Data Miner Redirects 2 | . . . . . . . . . . . . 1 . . . . . . 1 . . . . . . . Construction Impeded 4 | . . . . . . . 1 . . . . . . . 1 . . . 2 . . . . . . . Haulers Reinforced 2 | . . . . . . . . . . . . . . 1 . . . . . . . . . 1 . . Active Scanning Responses . | . . . . . . . . . . . . . . . . . . . . . . . . . . . Cargo Convoy Interrupts 1 | . . . . . . . 1 . . . . . . . . . . . . . . . . . . . Stealth | -11 -10 -10 -8 -8 -6 -6 -6 -6 -6 -6 -5 -5 -5 -5 -5 -5 -5 -5 -4 -4 -4 -4 -3 -3 -3 -3 --------- Run | Yrd Mat Sub Rec Scr Fac Was Fac Low Low Dat Pro Fac Was Fac Ext Cet Arc Hub Fac Upp Upp War Pro Res Qua Frg Distress Signals 24 | . . . . . 2 . 1 . . . . . . 1 3 1 . 1 1 1 . . . 9 1 3 Communications Jammed . | . . . . . . . . . . . . . . . . . . . . . . . . . . . Distress Signals . | . . . . . . . . . . . . . . . . . . . . . . . . . . . Times Spotted 523 | . 16 24 3 . 8 . 44 10 9 . 13 8 6 37 30 10 6 27 31 3 10 109 24 51 16 28 Peak Tracking Total 19 | . 3 2 1 . 4 . 4 4 4 . 5 3 6 5 7 5 1 14 7 3 6 19 5 6 6 8 Tactical Retreats 53 | . 1 1 . . 1 . 12 4 2 . . 1 1 2 1 . . 2 1 . . 3 8 3 4 6 Traps | -11 -10 -10 -8 -8 -6 -6 -6 -6 -6 -6 -5 -5 -5 -5 -5 -5 -5 -5 -4 -4 -4 -4 -3 -3 -3 -3 ------- Run | Yrd Mat Sub Rec Scr Fac Was Fac Low Low Dat Pro Fac Was Fac Ext Cet Arc Hub Fac Upp Upp War Pro Res Qua Frg Traps Triggered 15 | . 2 2 . . 2 . . . . . . 1 . 1 3 . . . 2 . 1 . . . . 1 Indirectly . | . . . . . . . . . . . . . . . . . . . . . . . . . . . Trap Hack Attempts 11 | . . . . . 1 . 10 . . . . . . . . . . . . . . . . . . . Triggered . | . . . . . . . . . . . . . . . . . . . . . . . . . . . Disarmed 3 | . . . . . . . 3 . . . . . . . . . . . . . . . . . . . Reprogrammed 1 | . . . . . . . 1 . . . . . . . . . . . . . . . . . . . Reused 11 | . . . . . . . . 5 . . . . . . . . . . . 5 1 . . . . . Traps Extracted . | . . . . . . . . . . . . . . . . . . . . . . . . . . . Installed 19 | . . . . . . . . 8 . . . . . . . . . . . 8 3 . . . . . Triggered 11 | . . . . . . . . 5 . . . . . . . . . . . 5 1 . . . . . Most Traps Carried 4 | . . . . . . . . 4 . . . . . . . . . . . 4 3 . . . . . Machines | -11 -10 -10 -8 -8 -6 -6 -6 -6 -6 -6 -5 -5 -5 -5 -5 -5 -5 -5 -4 -4 -4 -4 -3 -3 -3 -3 ---------- Run | Yrd Mat Sub Rec Scr Fac Was Fac Low Low Dat Pro Fac Was Fac Ext Cet Arc Hub Fac Upp Upp War Pro Res Qua Frg Machines Disabled 48 | . . 5 . . 1 . 5 . . . 2 . . 6 1 . . 1 15 . 4 2 . 1 5 . Max in Single Turn 4 | . . 3 . . 1 . 3 . . . 2 . . 4 . . . 1 2 . 2 2 . 1 1 . Garrison Access 4 | . . . . . 1 . 2 . . . . . . . . . . 1 . . . . . . . . Network Hub 3 | . . . . . . . . . . . . . . . . . . 3 . . . . . . . . Machines Repaired . | . . . . . . . . . . . . . . . . . . . . . . . . . . . Machines Dismantled . | . . . . . . . . . . . . . . . . . . . . . . . . . . . Machines Sabotaged . | . . . . . . . . . . . . . . . . . . . . . . . . . . . Overloaded Fab Kills . | . . . . . . . . . . . . . . . . . . . . . . . . . . . Hacking | -11 -10 -10 -8 -8 -6 -6 -6 -6 -6 -6 -5 -5 -5 -5 -5 -5 -5 -5 -4 -4 -4 -4 -3 -3 -3 -3 --------- Run | Yrd Mat Sub Rec Scr Fac Was Fac Low Low Dat Pro Fac Was Fac Ext Cet Arc Hub Fac Upp Upp War Pro Res Qua Frg Machines Accessed 112 | . 4 2 4 3 14 . 16 . 1 4 . 13 . 13 1 . . 5 6 . . 2 . 16 4 4 Terminals 45 | . 3 . 4 . 5 . 5 . . . . 5 . 6 1 . . 5 3 . . . . 2 3 3 Fabricators 10 | . . . . . 1 . 3 . . . . 1 . . . . . . 1 . . . . 4 . . Repair Stations 10 | . 1 . . . . . 1 . . . . 1 . 3 . . . . 1 . . . . 2 1 . Recycling Units 20 | . . . . . 5 . 2 . . . . 5 . 4 . . . . . . . . . 4 . . Scanalyzers 10 | . . . . . 1 . 3 . . . . 1 . . . . . . 1 . . . . 3 . 1 Garrison Access 5 | . . . . . 2 . 2 . . . . . . . . . . . . . . . . 1 . . Total Hacks 317 | . 9 5 6 9 25 . 38 . 1 31 . 33 . 35 4 . . 11 31 . . 6 . 53 10 10 Successful 196 | . 5 5 2 9 17 . 28 . 1 31 . 20 . 18 3 . . 8 13 . . 6 . 21 5 4 Failed 117 | . 3 . 3 . 8 . 10 . . . . 12 . 17 1 . . 3 17 . . . . 32 5 6 Catastrophic 28 | . . . . . 1 . 1 . . . . 1 . 6 . . . 1 2 . . . . 11 2 3 Database Lockouts 4 | . 1 . 1 . . . . . . . . 1 . . . . . . 1 . . . . . . . Manual 124 | . 5 . 6 . 11 . 16 . . . . 21 . 28 4 . . 10 4 . . 1 . 11 1 6 Terminals 127 | . 6 . 6 . 11 . 14 . . . . 17 . 23 4 . . 11 15 . . . . 4 8 8 Fabricators 35 | . . . . . 3 . 11 . . . . 5 . . . . . . 5 . . . . 11 . . Repair Stations 36 | . 3 . . . . . 2 . . . . 2 . 8 . . . . 6 . . . . 13 2 . Recycling Units 24 | . . . . . 5 . 3 . . . . 5 . 4 . . . . . . . . . 7 . . Scanalyzers 36 | . . . . . 2 . 6 . . . . 4 . . . . . . 5 . . . . 17 . 2 Garrison Access 7 | . . . . . 4 . 2 . . . . . . . . . . . . . . . . 1 . . Terminal Hacks 96 | . 3 5 2 9 4 . 8 . 1 31 . 4 . 7 3 . . 3 5 . . 6 . . 4 1 Record 18 | . . 4 . 1 . . . . . 11 . . . . . . . . . . . . . . 2 . Part Schematic 18 | . . . 1 . 2 . 2 . . 12 . . . 1 . . . . . . . . . . . . Robot Schematic 5 | . . . . . . . . . . 5 . . . . . . . . . . . . . . . . Robot Analysis 12 | . 2 . 1 7 . . . . . . . . . . 1 . . . 1 . . . . . . . Prototype ID Bank 8 | . . . . . . . . . . 3 . . . . . . . . . . . 5 . . . . Open Door 2 | . . . . . . . . . 1 . . . . . . . . . . . . 1 . . . . Level Access Points 1 | . . . . . . . . . . . . . . . . . . 1 . . . . . . . . Branch Access Points 3 | . . . . . . . 1 . . . . . . 1 . . . . 1 . . . . . . . Terminal Index 2 | . . . . . . . . . . . . 1 . . . . . . 1 . . . . . . . Fabricator Index 1 | . . . . . . . 1 . . . . . . . . . . . . . . . . . . . Scanalyzer Index 1 | . . . . . . . . . . . . . . 1 . . . . . . . . . . . . Alert Level 2 | . . . . . . . . . . . . . . . . . . . 1 . . . . . 1 . Unreport Threat 8 | . . . . . . . 2 . . . . . . 3 2 . . 1 . . . . . . . . Locate Traps 4 | . 1 . . . 1 . 1 . . . . . . 1 . . . . . . . . . . . . Recall Investigation 2 | . . . . . . . 1 . . . . 1 . . . . . . . . . . . . . . Hauler Manifests 2 | . . . . . 1 . . . . . . 1 . . . . . . . . . . . . . . Registered Components 2 | . . . . . . . . . . . . 1 . . . . . . 1 . . . . . . . Zone Layout 3 | . . . . . . . . . . . . . . . . . . 1 . . . . . . 1 1 Proto ID Catalog 2 | . . 1 . 1 . . . . . . . . . . . . . . . . . . . . . . Fabricator Hacks 15 | . . . . . 2 . 6 . . . . 2 . . . . . . . . . . . 5 . . Network Status 2 | . . . . . 1 . . . . . . . . . . . . . . . . . . 1 . . Load Schematic 7 | . . . . . 1 . 3 . . . . 1 . . . . . . . . . . . 2 . . Build 6 | . . . . . . . 3 . . . . 1 . . . . . . . . . . . 2 . . Repair Station Hacks 18 | . 2 . . . . . 2 . . . . 2 . 3 . . . . 3 . . . . 5 1 . Scan Component 11 | . 1 . . . . . 1 . . . . 1 . 2 . . . . 2 . . . . 3 1 . Repair 7 | . 1 . . . . . 1 . . . . 1 . 1 . . . . 1 . . . . 2 . . Recycling Unit Hacks . | . . . . . . . . . . . . . . . . . . . . . . . . . . . Scanalyzer 22 | . . . . . 2 . 5 . . . . 3 . . . . . . 4 . . . . 7 . 1 Insert Component 8 | . . . . . . . 2 . . . . 1 . . . . . . 1 . . . . 3 . 1 Analyze 4 | . . . . . . . . . . . . 1 . . . . . . 1 . . . . 2 . . Retrieve Study 10 | . . . . . 2 . 3 . . . . 1 . . . . . . 2 . . . . 2 . . Garrison Access Hacks 3 | . . . . . 1 . 2 . . . . . . . . . . . . . . . . . . . Seal Access 3 | . . . . . 1 . 2 . . . . . . . . . . . . . . . . . . . Unauthorized Hacks 42 | . . . . . 8 . 5 . . . . 9 . 8 . . . 5 1 . . . . 4 . 2 Terminals 17 | . . . . . 3 . 1 . . . . 3 . 2 . . . 5 1 . . . . . . 2 Track 4 | . . . . . . . . . . . . . . . . . . 2 . . . . . . . 2 Botnet 9 | . . . . . 2 . 1 . . . . 2 . 2 . . . 1 1 . . . . . . . Operators 2 | . . . . . 1 . . . . . . 1 . . . . . . . . . . . . . . Sabotage 2 | . . . . . . . . . . . . . . . . . . 2 . . . . . . . . Fabricators 4 | . . . . . . . 3 . . . . 1 . . . . . . . . . . . . . . Prioritize 3 | . . . . . . . 2 . . . . 1 . . . . . . . . . . . . . . Haulers 1 | . . . . . . . 1 . . . . . . . . . . . . . . . . . . . Repair Stations 2 | . . . . . . . . . . . . . . 2 . . . . . . . . . . . . Patch 2 | . . . . . . . . . . . . . . 2 . . . . . . . . . . . . Recycling Units 19 | . . . . . 5 . 1 . . . . 5 . 4 . . . . . . . . . 4 . . Tunnel 1 | . . . . . . . . . . . . 1 . . . . . . . . . . . . . . Fedlink 17 | . . . . . 5 . 1 . . . . 4 . 3 . . . . . . . . . 4 . . Scrapoids 1 | . . . . . . . . . . . . . . 1 . . . . . . . . . . . . Scanalyzers . | . . . . . . . . . . . . . . . . . . . . . . . . . . . Garrison Access . | . . . . . . . . . . . . . . . . . . . . . . . . . . . Data Cores Recovered . | . . . . . . . . . . . . . . . . . . . . . . . . . . . Used . | . . . . . . . . . . . . . . . . . . . . . . . . . . . Hacking Detections 44 | . 3 . 1 . 6 . 10 . . . . 5 . 5 . . . 2 2 . . . . 8 2 . Full Trace Events 17 | . . . 1 . 2 . 5 . . . . 2 . 3 . . . . 1 . . . . 3 . . Feedback Events 2 | . . . . . 1 . 1 . . . . . . . . . . . . . . . . . . . Corruption 2 | . . . . . 1 . 1 . . . . . . . . . . . . . . . . . . . Feedback Blocked 1 | . . . . . . . . . . . . . . . . . . . . . . . . 1 . . Robot Schematics Acquired 5 | . . . . . . . . . . 5 . . . . . . . . . . . . . . . . Robots Built . | . . . . . . . . . . . . . . . . . . . . . . . . . . . Authchips . | . . . . . . . . . . . . . . . . . . . . . . . . . . . Time . | . . . . . . . . . . . . . . . . . . . . . . . . . . . Total Robot Build Rating . | . . . . . . . . . . . . . . . . . . . . . . . . . . . Part Schematics Acquired 22 | . . . 1 . 2 . 2 . . 12 . 1 . 1 . . . . 1 . . . . 2 . . Parts Built 12 | . . . . . . . 6 . . . . 2 . . . . . . . . . . . 4 . . Authchips . | . . . . . . . . . . . . . . . . . . . . . . . . . . . Time 277 | . . . . . . . 153 . . . . 53 . . . . . . . . . . . 71 . . Total Part Build Rating 64 | . . . . . . . 34 . . . . 12 . . . . . . . . . . . 18 . . Part Studies Acquired 10 | . . . . . 2 . 3 . . . . 1 . . . . . . 2 . . . . 2 . . Parts Repaired 7 | . 1 . . . . . 1 . . . . 1 . 1 . . . . 1 . . . . 2 . . Time 420 | . 26 . . . . . 86 . . . . 28 . 95 . . . . 34 . . . . 151 . . Parts Recycled . | . . . . . . . . . . . . . . . . . . . . . . . . . . . Recycled Matter . | . . . . . . . . . . . . . . . . . . . . . . . . . . . Retrieved Matter . | . . . . . . . . . . . . . . . . . . . . . . . . . . . Retrieved Components . | . . . . . . . . . . . . . . . . . . . . . . . . . . . Parts Scanalyzed 4 | . . . . . . . . . . . . 1 . . . . . . 1 . . . . 2 . . Part Schematics Acquired 4 | . . . . . . . . . . . . 1 . . . . . . 1 . . . . 2 . . Parts Damaged 1 | . . . . . . . . . . . . . . . . . . . . . . . . 1 . . Bothacking | -11 -10 -10 -8 -8 -6 -6 -6 -6 -6 -6 -5 -5 -5 -5 -5 -5 -5 -5 -4 -4 -4 -4 -3 -3 -3 -3 ------------ Run | Yrd Mat Sub Rec Scr Fac Was Fac Low Low Dat Pro Fac Was Fac Ext Cet Arc Hub Fac Upp Upp War Pro Res Qua Frg Used RIF Installer . | . . . . . . . . . . . . . . . . . . . . . . . . . . . Robots Hacked 27 | . . . . . 2 . 3 . . 1 . 1 . 3 3 1 8 . 1 . . . . 1 2 1 Non-combat 2 | . . . . . 1 . 1 . . . . . . . . . . . . . . . . . . . Combat 2 | . . . . . . . . . . 1 . . . . . 1 . . . . . . . . . . Robot Hacks Applied 4 | . . . . . 1 . 1 . . 1 . . . . . 1 . . . . . . . . . . parse_system 2 | . . . . . . . . . . 1 . . . . . 1 . . . . . . . . . . no_distress 1 | . . . . . . . 1 . . . . . . . . . . . . . . . . . . . find_chute 1 | . . . . . 1 . . . . . . . . . . . . . . . . . . . . . Manual 23 | . . . . . 1 . 2 . . . . 1 . 3 3 . 8 . 1 . . . . 1 2 1 Relay Couplers Released 3 | . . . . . . . 2 . . . . . . . . . . 1 . . . . . . . . Machine Destruction 3 | . . . . . . . 2 . . . . . . . . . . 1 . . . . . . . . Fabnet Peak Effective % . | . . . . . . . . . . . . . . . . . . . . . . . . . . . Robots Rewired 12 | . . . . . . . . . . . . . . . 8 . . . . 1 . 3 . . . . Allies Hacked 2 | . . . . . . . . . . . . . . 1 . . . . . . . . . . 1 . Hacks Repelled . | . . . . . . . . . . . . . . . . . . . . . . . . . . . Allies | -11 -10 -10 -8 -8 -6 -6 -6 -6 -6 -6 -5 -5 -5 -5 -5 -5 -5 -5 -4 -4 -4 -4 -3 -3 -3 -3 -------- Run | Yrd Mat Sub Rec Scr Fac Was Fac Low Low Dat Pro Fac Was Fac Ext Cet Arc Hub Fac Upp Upp War Pro Res Qua Frg Total Allies 52 | . . . . . 1 . 2 . . . . 1 1 8 22 . 8 . 1 1 . 3 . 1 2 1 Largest Group 12 | . . . . . 1 1 2 . . . . 1 1 7 12 11 9 9 1 1 . 3 . 1 2 1 Highest-Rated Group 411 | . . . . . 10 10 26 . . . . 26 31 269 411 287 386 386 10 116 . 157 . 26 52 23 Highest-Rated Ally 159 | . . . . . 10 10 26 . . . . 26 31 47 159 39 45 45 10 116 . 64 . 26 26 23 Initial UFD Resources 92 | . . . . . 22 42 42 44 44 44 47 47 65 65 68 68 68 68 71 71 71 71 74 74 92 92 Total Orders 42 | . . . . . . . 1 . . . . 2 . 4 7 9 2 5 . . . 3 . 9 . . STAY 28 | . . . . . . . 1 . . . . 1 . 2 5 6 1 5 . . . 2 . 5 . . FOLLOW 14 | . . . . . . . . . . . . 1 . 2 2 3 1 . . . . 1 . 4 . . Ally Attacks 247 | . . . . . . . . . . . . . 11 99 104 14 . . . . . 19 . . . . Total Damage 5327 | . . . . . . . . . . . . . 144 2368 2230 255 . . . . . 330 . . . . Kills 43 | . . . . . . . . . . . . . . 21 18 2 . . . . . 2 . . . . Allies Corrupted 2 | . . . . . . . . . . . . . . . . . . 1 . . . . . . 1 . Allies Melted . | . . . . . . . . . . . . . . . . . . . . . . . . . . . Intel | -11 -10 -10 -8 -8 -6 -6 -6 -6 -6 -6 -5 -5 -5 -5 -5 -5 -5 -5 -4 -4 -4 -4 -3 -3 -3 -3 ------- Run | Yrd Mat Sub Rec Scr Fac Was Fac Low Low Dat Pro Fac Was Fac Ext Cet Arc Hub Fac Upp Upp War Pro Res Qua Frg Active Infowar (turns) 16476 | 6 242 . . . 497 97 1350 1113 738 64 974 824 75 1027 907 341 578 218 1076 846 893 1144 791 1664 682 329 Optics 16213 | . . . . . 495 97 1350 1104 738 64 974 824 75 1027 907 341 578 218 1076 846 893 1144 791 1660 682 329 Sensors 14934 | . . . . . 481 97 1212 1111 719 64 974 784 75 993 907 204 . . 973 846 893 1144 791 1664 682 320 Terrain 1791 | . . . . . . . . . . . 620 720 75 65 . . . 208 103 . . . . . . . Seismic 248 | 6 242 . . . . . . . . . . . . . . . . . . . . . . . . . Machine Analysis 1604 | . . . . . 443 97 1064 . . . . . . . . . . . . . . . . . . . Jamming 11 | . . . . . . . . . . . . . . . . . . . . . . . . 11 . . Robot Analysis Total 12 | . 2 . 1 7 . . . . . . . . . . 1 . . . 1 . . . . . . . Derelict Logs Recovered 13 | . . 1 . 4 . . . 1 3 . 1 . . . . . . . . 2 1 . . . . . Drone Launches . | . . . . . . . . . . . . . . . . . . . . . . . . . . . Drone Recoveries . | . . . . . . . . . . . . . . . . . . . . . . . . . . . Exploration | -11 -10 -10 -8 -8 -6 -6 -6 -6 -6 -6 -5 -5 -5 -5 -5 -5 -5 -5 -4 -4 -4 -4 -3 -3 -3 -3 ------------- Run | Yrd Mat Sub Rec Scr Fac Was Fac Low Low Dat Pro Fac Was Fac Ext Cet Arc Hub Fac Upp Upp War Pro Res Qua Frg Turns Passed 27075 | 120 1315 4935 1090 3361 504 97 1368 1114 738 64 974 824 75 1027 907 341 578 218 1076 846 893 1144 791 1664 682 329 Spaces Moved 24137 | 18 574 2427 451 1486 1243 237 1727 1194 936 90 807 989 110 1148 731 166 354 262 1123 1200 1451 1188 987 2066 792 380 Core . | . . . . . . . . . . . . . . . . . . . . . . . . . . . Treads 2109 | 7 315 1653 . . . . . . . . . . . . . 120 14 . . . . . . . . . Legs 11 | 11 . . . . . . . . . . . . . . . . . . . . . . . . . . Wheels 2970 | . 259 774 451 1486 . . . . . . . . . . . . . . . . . . . . . . Hover 17666 | . . . . . . 99 1727 1194 936 90 807 989 110 1148 731 46 340 262 1123 1200 1451 1188 987 2066 792 380 Flight 1381 | . . . . . 1243 138 . . . . . . . . . . . . . . . . . . . . Fastest Speed 23 | 120 150 125 215 155 23 23 48 74 65 65 65 48 49 49 60 61 56 49 51 42 50 36 56 52 58 58 Average Speed 83 | 135 155 172 228 225 23 36 55 74 66 65 65 51 49 60 61 144 60 55 55 54 50 49 56 57 58 58 Slowest Speed 320 | 160 240 320 230 230 26 56 106 144 74 65 65 66 49 122 65 160 160 56 127 120 50 54 132 120 58 58 Overloaded Moves 76 | . . . . . . . . . . . . . . . . . . 13 . . . 63 . . . . Propulsion Burnouts . | . . . . . . . . . . . . . . . . . . . . . . . . . . . Robots Hopped 1 | . . . . . . . . . . . . . . . 1 . . . . . . . . . . . Potential Cave-ins 31 | . . . . . . . . . . . . 6 . . . . . . 4 . . 1 . 6 2 12 Cave-ins Triggered 1 | . . . . . . . 1 . . . . . . . . . . . . . . . . . . . Exploration Rate (%) 70 | 3 95 94 71 87 34 90 51 93 98 80 98 33 87 41 82 60 98 47 31 95 95 92 94 60 73 31 Regions Visited 26 Branch Regions 17 Pre-discovered Areas 7 | . . 1 . 2 1 . . . . 1 . 1 . . . . . . . . 1 . . . . . Known Exits Taken 17 | . . . . . . . 1 1 1 1 1 . . 1 1 1 1 1 1 1 1 1 1 1 1 . Unknown Exits Taken 5 | 1 1 1 1 1 . . . . . . . . . . . . . . . . . . . . . . Scrap Searched 43 | . . 17 . 7 . . . 8 4 . 1 . . . . . . . . 2 2 . 2 . . . Spaces Dug 185 | . . 1 . . 25 . 33 6 7 . 1 18 . 12 2 . . 7 5 1 . 4 1 17 19 26 Terrain Destroyed 1832 | 7 . 91 2 . 32 . 184 11 15 . 114 40 64 59 23 . 5 7 251 42 139 374 138 69 34 131 Melee 134 | . . . . . 23 . 21 5 4 . 1 18 . 12 2 . . 7 . . . . . 10 5 26 Projectile 169 | . . 8 2 . 9 . 17 6 11 . 2 22 . 1 5 . 5 . 27 2 . 4 1 18 29 . AOE 1529 | 7 . 83 . . . . 146 . . . 111 . 64 46 16 . . . 224 40 139 370 137 41 . 105 Terrain Rammed . | . . . . . . . . . . . . . . . . . . . . . . . . . . . Walls Destroyed . | . . . . . . . . . . . . . . . . . . . . . . . . . . . Machines Disabled . | . . . . . . . . . . . . . . . . . . . . . . . . . . . Actions | -11 -10 -10 -8 -8 -6 -6 -6 -6 -6 -6 -5 -5 -5 -5 -5 -5 -5 -5 -4 -4 -4 -4 -3 -3 -3 -3 --------- Run | Yrd Mat Sub Rec Scr Fac Was Fac Low Low Dat Pro Fac Was Fac Ext Cet Arc Hub Fac Upp Upp War Pro Res Qua Frg Total 29640 | 65 940 3038 493 1504 1393 246 2004 1405 1023 93 1236 1212 126 1361 1087 247 679 305 1512 1369 1590 1710 1196 2432 939 435 Wait 3116 | 18 288 372 19 . 43 2 110 154 59 . 404 103 . 32 163 32 250 15 211 73 79 379 152 88 68 2 Move 24111 | 17 573 2426 450 1485 1243 236 1726 1193 935 89 806 989 109 1147 728 165 353 262 1121 1199 1450 1187 986 2065 791 380 Hop 1 | . . . . . . . . . . . . . . . 1 . . . . . . . . . . . Pick Up 230 | . 28 39 4 6 9 3 15 10 4 . . 16 5 7 1 3 3 2 17 14 4 9 7 15 6 3 Fast Attach 132 | 1 3 8 1 1 4 . 12 2 1 . . 9 . 6 1 5 5 . 11 3 1 16 . 36 3 3 Attach 103 | . . 6 . . 16 1 10 4 . . 2 4 . 3 2 2 4 . 12 8 4 5 8 10 . 2 Detach 45 | . . 2 . . 4 . 6 1 . . 1 1 . 2 . 5 3 . 3 3 4 3 . 6 . 1 Swap 197 | 3 7 13 3 2 5 2 19 3 3 3 7 8 2 37 10 3 2 2 10 2 2 8 4 26 9 2 Drop 294 | 2 11 47 4 10 13 2 12 14 . . . 20 3 12 2 5 4 2 23 16 8 21 7 48 5 3 Fire 1031 | 24 29 112 12 . 13 . 35 9 16 1 15 27 7 88 94 27 47 13 103 43 34 64 32 126 51 9 Melee 231 | . . . . . 29 . 46 7 5 . 1 33 . 24 23 . 8 8 . . . . . 11 6 30 Ram 1 | . . . . . . . . . . . . . . . . . . 1 . . . . . . . . Kick . | . . . . . . . . . . . . . . . . . . . . . . . . . . . Crush 1 | . 1 . . . . . . . . . . . . . . . . . . . . . . . . . Escape Stasis 45 | . . . . . 11 . . . . . . . . . 33 . . . 1 . . . . . . . Rewire 48 | . . . . . . . . . . . . . . . 29 . . . . . 1 18 . . . . Trap 30 | . . . . . 1 . 10 8 . . . . . . . . . . . 8 3 . . . . . Miscellaneous 24 | . . 13 . . 2 . 3 . . . . 2 . 3 . . . . . . . . . 1 . . Route ------- -11/Scrapyard -10/Materials (discovered 5 exits: [*Mat x2] / [*Min x2] / *Sub) -10/Subcaves (discovered 3 exits: [*Mat x2] / *Rec) -8/Recycling (discovered 2 exits: *Fac / *Scr) -8/Scraptown (discovered 2 exits: *Fac x2) -6/Factory -6/Waste -6/Factory (discovered 4 exits: *Fac x2 / *Low x2) -6/Lower Caves -6/Lower Caves (discovered 2 exits: *Fac / *Dat) -6/Data Miner -5/Proximity Caves -5/Factory -5/Waste -5/Factory (discovered 5 exits: *Fac / *Upp x2 / *Ext x2) -5/Extension (discovered 2 exits: *Fac / *Cet) -5/Cetus (discovered 2 exits: *Fac / *Arc) -5/Archives (discovered 3 exits: *Fac / *Hub x2) -5/Hub_04(d) (discovered 4 exits: *Fac x4) -4/Factory (discovered 3 exits: *Res / *Upp x2) -4/Upper Caves -4/Upper Caves (discovered 2 exits: *Res / *War) -4/Warlord -3/Proximity Caves -3/Research (discovered 4 exits: *Res x2 / *Arm / *Qua) -3/Quarantine (discovered 2 exits: *Sec / *Frg) -3/Protoforge History --------- Turn | Location | Event 7 | -11/Scrapyard | Discovered new exit (range 2) 121 | -11/Scrapyard | Entered Materials 249 | -10/Materials | Central database locked down 269 | -10/Materials | Discovered new exit (range 16) 310 | -10/Materials | Build established: Mutant 425 | -10/Materials | Discovered new exit (range 16) 651 | -10/Materials | Repaired Lgt. Treads 666 | -10/Materials | Discovered new exit (range 15) 940 | -10/Materials | Discovered new exit (range 5) 1419 | -10/Materials | Discovered new exit (range 6) 1436 | -10/Materials | Entered Subcaves 1753 | -10/Subcaves | Core integrity fell below 50% 1858 | -10/Subcaves | Ambushed by angry Subdweller bent on revenge 1939 | -10/Subcaves | Shifting Twisted Machinery released Sub. Laser 1955 | -10/Subcaves | Learned location of Mines (-10) 1956 | -10/Subcaves | Shifting Twisted Machinery released Scrap Shield 2604 | -10/Subcaves | Build established: Subdweller-Mutant 2626 | -10/Subcaves | Visited Clippyterm 2631 | -10/Subcaves | Learned Research security intel 2631 | -10/Subcaves | Learned Research machine intel 2868 | -10/Subcaves | Ambushed by Subdwellers from Twisted Machinery 3222 | -10/Subcaves | Build established: Mutant 3557 | -10/Subcaves | Shifting Twisted Machinery released Sub. Machine Gun 3577 | -10/Subcaves | Discovered new exit (range 12) 4049 | -10/Subcaves | Discovered new exit (range 8) 4053 | -10/Subcaves | Shifting Twisted Machinery released Piercing Trap 4306 | -10/Subcaves | Disturbed a concealed Subdweller 4420 | -10/Subcaves | Visited 4L-MR0's lab 4612 | -10/Subcaves | Discovered new exit (range 13) 4845 | -10/Subcaves | Shifting Twisted Machinery released Sub. Power Source 5473 | -10/Subcaves | Disturbed a concealed Subdweller 5475 | -10/Subcaves | Core integrity fell below 20% 5476 | -10/Subcaves | Ambushed by Subdweller buried in earth 5888 | -10/Subcaves | Found Powered Cannon 6371 | -10/Subcaves | Entered Recycling 6947 | -8/Recycling | Discovered new exit (range 9) 7403 | -8/Recycling | Scanned before Scraplab entrance 7438 | -8/Recycling | Entered Scraplab 7456 | -8/Recycling | Discovered new exit (range 2) 7461 | -8/Recycling | Entered Scraptown 7804 | -8/Scraptown | Scanned Subdweller tech in exchange for log data 7809 | -8/Scraptown | Learned Research stockpile data 7811 | -8/Scraptown | Learned location of Zion (-7) 7813 | -8/Scraptown | Learned Research terminal intel 7816 | -8/Scraptown | Learned Factory stockpile data 7905 | -8/Scraptown | Discovered new exit (range 13) 8145 | -8/Scraptown | Visited Symbiants 8188 | -8/Scraptown | Visited Fellowship of the Rings 8273 | -8/Scraptown | Visited UFD Registry 8273 | -8/Scraptown | Registered with UFD as "Nullbay" 8430 | -8/Scraptown | Guru changed UFD alias to "Protonwarp" 8545 | -8/Scraptown | Visited Bundlers 8634 | -8/Scraptown | Visited Cave Peace 8683 | -8/Scraptown | Visited Cyclists 8699 | -8/Scraptown | Entered Cyclist Reading Room 8745 | -8/Scraptown | Visited Supply Room 9097 | -8/Scraptown | Visited TADAMA 9189 | -8/Scraptown | Visited LU-1G1's Boring Crew 9221 | -8/Scraptown | Visited Abandonware Association 9244 | -8/Scraptown | Learned abandonware demo "HACKBUD.EXE" 9400 | -8/Scraptown | Delivered Scrap Shield to a Scientist 9481 | -8/Scraptown | Visited Analyses Database 9529 | -8/Scraptown | Visited Supply Room 9573 | -8/Scraptown | Visited Junk Repository 9621 | -8/Scraptown | Visited Curators Association 9967 | -8/Scraptown | Visited Scrap Suit Storage 10008 | -8/Scraptown | Visited Botcube Research 10045 | -8/Scraptown | Visited Science Guys 10732 | -8/Scraptown | Met Optimus 10732 | -8/Scraptown | Accepted into 0bPrime 10819 | -8/Scraptown | Discovered new exit (range 3) 10822 | -8/Scraptown | Entered Factory 10822 | -6/Factory | Evolved 8 slots: Propulsion x3, Utility x5 10924 | -6/Factory | Loaded intel: 8 recycling unit locations 10931 | -6/Factory | Learned location of Protoforge (-3) 11023 | -6/Factory | Spotted B-75 Beast 11066 | -6/Factory | Discovered new exit (range 22) 11117 | -6/Factory | Build established: Scout 11326 | -6/Factory | Manually triggered Chute Trap 11326 | -6/Factory | Sucked down chute 11326 | -6/Factory | Entered Waste 11326 | -6/Waste | The area was eerily silent 11355 | -6/Waste | Discovered new exit (range 13) 11386 | -6/Waste | 1 allies followed down the chute 11421 | -6/Waste | Identified exit to Factory 11423 | -6/Waste | Entered Factory 11423 | -6/Factory | Accompanied by 1 ally 11557 | -6/Factory | Repaired Broken Micro-nuke Launcher 11795 | -6/Factory | Identified exit to Lower Caves 11850 | -6/Factory | Spotted B-75 Beast 11933 | -6/Factory | Destroyed 7 combat bots 12066 | -6/Factory | Garrison activated, responded to threat 12089 | -6/Factory | Crushed by falling debris 12158 | -6/Factory | Lost 5 parts (1p2n2u) 12233 | -6/Factory | Fabricated Cmb. Gravmag System? 12277 | -6/Factory | Fabricated Cmb. Gravmag System? 12283 | -6/Factory | Discovered new exit (range 5) 12492 | -6/Factory | Cargo convoy interrupted 12504 | -6/Factory | Loaded intel: 8 recycling unit locations 12557 | -6/Factory | Fabricated Adv. Sensor Array (x2) 12723 | -6/Factory | Discovered new exit (range 21) 12758 | -6/Factory | Identified exit to Factory 12791 | -6/Factory | Entered Lower Caves 12793 | -6/Lower Caves | UFD Scientist delivered a prototype 12795 | -6/Lower Caves | Found Prototype Protection 12795 | -6/Lower Caves | Identified Enh. Scrap Shield 12804 | -6/Lower Caves | Lost 3 parts (1n1u1w) 13050 | -6/Lower Caves | Encountered a Warlord checkpoint 13187 | -6/Lower Caves | Discovered new exit (range 5) 13190 | -6/Lower Caves | Identified exit to Lower Caves 13266 | -6/Lower Caves | Build established: Machinist-Scout 13416 | -6/Lower Caves | Learned location of 1 exit from Proximity Caves 13763 | -6/Lower Caves | Spotted B-75 Beast 13905 | -6/Lower Caves | Entered another Lower Caves area 13921 | -6/Lower Caves | Encountered a Warlord checkpoint 13931 | -6/Lower Caves | Discovered exit to Factory (range 17) 13971 | -6/Lower Caves | Learned Factory garrison access intel 14345 | -6/Lower Caves | Learned Factory trap positions 14500 | -6/Lower Caves | Discovered new exit (range 15) 14509 | -6/Lower Caves | Identified exit to Data Miner 14643 | -6/Lower Caves | Entered Data Miner 14643 | -6/Data Miner | Discovered new exit (range 6) 14652 | -6/Data Miner | Met Data Miner 14670 | -6/Data Miner | Learned location of Section 7 (-3) 14670 | -6/Data Miner | Acquired the access code to Warlord's prototype stash 14680 | -6/Data Miner | Received God Mode back door access code from Data Miner 14704 | -6/Data Miner | Identified exit to Proximity Caves 14707 | -6/Data Miner | Entered Proximity Caves 14973 | -5/Proximity Caves | Build established: Scout 15039 | -5/Proximity Caves | Learned Factory security intel 15199 | -5/Proximity Caves | Encountered an infested base 15237 | -5/Proximity Caves | Destroyed 11 combat bots 15654 | -5/Proximity Caves | Attracted the attention of an 0b10 checkpoint 15681 | -5/Proximity Caves | Entered Factory 15681 | -5/Factory | Evolved 2 slots: Power x1, Utility x1 15682 | -5/Factory | Identified exit to Extension 15683 | -5/Factory | Loaded intel: 110 trap records 15685 | -5/Factory | Loaded intel: 4 garrison access locations 15901 | -5/Factory | Loaded intel: 8 recycling unit locations 16041 | -5/Factory | Incoming investigation squad redirected 16193 | -5/Factory | Spotted B-75 Beast 16335 | -5/Factory | Watched by a mysterious "MATRIX" hacker 16335 | -5/Factory | Central database locked down 16401 | -5/Factory | Build established: Hacker-Scout 16407 | -5/Factory | Repaired Cmb. Gravmag System 16487 | -5/Factory | Fabricated Hyp. Gauss Cannon? 16505 | -5/Factory | Sucked down chute 16505 | -5/Factory | Entered Waste 16506 | -5/Waste | Met a frightened Derelict 16509 | -5/Waste | Spotted C-40 Crusher 16520 | -5/Waste | EMP discharged 16522 | -5/Waste | Found Broken Adv. Powered Armor 16526 | -5/Waste | Spotted C-40 Crusher 16526 | -5/Waste | Spotted C-40 Crusher 16526 | -5/Waste | Spotted C-40 Crusher 16526 | -5/Waste | Spotted C-40 Crusher 16530 | -5/Waste | Destroyed C-40 Crusher 16535 | -5/Waste | Destroyed C-40 Crusher 16537 | -5/Waste | Destroyed C-40 Crusher 16537 | -5/Waste | Destroyed C-40 Crusher 16540 | -5/Waste | Destroyed C-40 Crusher 16570 | -5/Waste | Discovered new exit (range 10) 16579 | -5/Waste | Identified exit to Factory 16580 | -5/Waste | Entered Factory 16723 | -5/Factory | Loaded intel: 8 recycling unit locations 16856 | -5/Factory | Scrapoid reinforcements arrived 16889 | -5/Factory | Repaired Broken Adv. Powered Armor 17067 | -5/Factory | P-70 Sage assimilated allied Administrator 6b 17131 | -5/Factory | Discovered new exit (range 5) 17133 | -5/Factory | Identified exit to Upper Caves 17180 | -5/Factory | First assault squad dispatched 17221 | -5/Factory | Lost 3 allies 17256 | -5/Factory | Spotted B-75 Beast 17392 | -5/Factory | Discovered new exit (range 8) 17396 | -5/Factory | Identified exit to Factory 17607 | -5/Factory | Entered Extension 17607 | -5/Extension | Accompanied by 1 ally 17639 | -5/Extension | Rescued a captive Derelict 17640 | -5/Extension | Rescued a captive Derelict 17641 | -5/Extension | Rescued a captive Derelict 17654 | -5/Extension | Rescued a captive Derelict 17684 | -5/Extension | Rescued A7 17730 | -5/Extension | Rescued a captive Derelict 18030 | -5/Extension | Build established: Commander-Scout 18082 | -5/Extension | Disrupted transfer network 18085 | -5/Extension | Spotted B-75 Beast 18105 | -5/Extension | Allies destroyed B-75 Beast 18115 | -5/Extension | Spotted B-75 Beast 18143 | -5/Extension | Allies destroyed B-75 Beast 18165 | -5/Extension | Extracted ID and sensor layout for unrecognized location from A7's data core 18183 | -5/Extension | Lost 5 allies 18188 | -5/Extension | Rescued a captive Derelict 18204 | -5/Extension | Rescued a captive Derelict 18335 | -5/Extension | Lost 3 allies 18354 | -5/Extension | Rescued a captive Derelict 18354 | -5/Extension | Rescued a captive Derelict 18383 | -5/Extension | Rescued a captive Derelict 18454 | -5/Extension | Discovered exit to Factory (range 10) 18455 | -5/Extension | Discovered new exit (range 6) 18508 | -5/Extension | Identified exit to Cetus 18514 | -5/Extension | Entered Cetus 18514 | -5/Cetus | Accompanied by 11 allies 18522 | -5/Cetus | Spotted Cetus Guard 18522 | -5/Cetus | Spotted Cetus Guard 18525 | -5/Cetus | Spotted Cetus Guard 18529 | -5/Cetus | Spotted Cetus Guard 18530 | -5/Cetus | Destroyed Cetus Guard 18540 | -5/Cetus | Allies destroyed Cetus Guard 18543 | -5/Cetus | Destroyed Cetus Guard 18552 | -5/Cetus | Destroyed Cetus Guard 18583 | -5/Cetus | Lost 6 allies 18610 | -5/Cetus | System corruption reached 10% 18668 | -5/Cetus | Discovered new exit (range 21) 18703 | -5/Cetus | Spotted Cetus Guard 18703 | -5/Cetus | Spotted Cetus Guard 18712 | -5/Cetus | Spotted Cetus Guard 18720 | -5/Cetus | Destroyed Cetus Guard 18723 | -5/Cetus | Destroyed Cetus Guard 18734 | -5/Cetus | Destroyed Cetus Guard 18734 | -5/Cetus | Spotted Cetus Guard 18739 | -5/Cetus | Destroyed Cetus Guard 18753 | -5/Cetus | Discovered exit to Factory (range 22) 18758 | -5/Cetus | Lost 3 parts (1p1u1w) 18770 | -5/Cetus | Met Revision 17 18850 | -5/Cetus | Identified exit to Archives 18855 | -5/Cetus | Entered Archives 18855 | -5/Archives | Accompanied by 4 allies 18957 | -5/Archives | Discovered new exit (range 22) 18967 | -5/Archives | Discovered exit to Factory (range 13) 18984 | -5/Archives | Discovered new exit (range 13) 19417 | -5/Archives | Identified exit to Hub_04(d) 19433 | -5/Archives | Entered Hub_04(d) 19433 | -5/Hub_04(d) | Accompanied by 9 allies 19529 | -5/Hub_04(d) | Discovered exit to Factory (range 18) 19585 | -5/Hub_04(d) | Network Hub disabled 19592 | -5/Hub_04(d) | Build established: Commander-Mutant 19618 | -5/Hub_04(d) | Spotted Lightning 19619 | -5/Hub_04(d) | Spotted B-75 Beast 19635 | -5/Hub_04(d) | Spotted Lightning 19638 | -5/Hub_04(d) | Spotted Lightning 19639 | -5/Hub_04(d) | Spotted Lightning 19641 | -5/Hub_04(d) | Network Hub disabled 19641 | -5/Hub_04(d) | Spotted Lightning 19641 | -5/Hub_04(d) | Spotted Lightning 19641 | -5/Hub_04(d) | Spotted Lightning 19641 | -5/Hub_04(d) | Spotted Lightning 19644 | -5/Hub_04(d) | Network Hub disabled 19651 | -5/Hub_04(d) | Entered Factory 19651 | -4/Factory | Evolved 2 slots: Propulsion x1, Utility x1 19673 | -4/Factory | Lost 4 allies 19679 | -4/Factory | Lost 4 parts (1p1u2w) 19735 | -4/Factory | Identified exit to Upper Caves 20016 | -4/Factory | Repaired Adv. Powered Armor 20058 | -4/Factory | Build established: Hacker-Scout 20108 | -4/Factory | Found Prototype Launcher 20108 | -4/Factory | Identified Smartbomb Launcher 20119 | -4/Factory | Found Smartbomb Launcher 20383 | -4/Factory | Discovered new exit (range 21) 20410 | -4/Factory | Identified exit to Research 20651 | -4/Factory | First assault squad dispatched 20654 | -4/Factory | Central database locked down 20681 | -4/Factory | Incoming assault squad redirected 20727 | -4/Factory | Entered Upper Caves 20736 | -4/Upper Caves | Attracted the attention of an 0b10 checkpoint 20770 | -4/Upper Caves | Spotted B-86 Titan 20859 | -4/Upper Caves | Learned Research emergency access door positions 20893 | -4/Upper Caves | Discovered new exit (range 14) 20987 | -4/Upper Caves | Build established: Scavenger-Scout 21304 | -4/Upper Caves | Rewired B-86 Titan 21572 | -4/Upper Caves | Identified exit to Upper Caves 21573 | -4/Upper Caves | Entered another Upper Caves area 21703 | -4/Upper Caves | Discovered exit to Research (range 9) 21731 | -4/Upper Caves | Learned location of Quarantine (-3) 21842 | -4/Upper Caves | Acquired the password to a Derelict Tinkerer's latest research 21875 | -4/Upper Caves | Caught by Unaware searching for contraband prototypes 21875 | -4/Upper Caves | Caught by Unaware searching for contraband prototypes 22047 | -4/Upper Caves | Found Prototype Special Weapon 22047 | -4/Upper Caves | Identified Molecular Deconstructor 22244 | -4/Upper Caves | Entered a destroyed Warlord outpost 22297 | -4/Upper Caves | Discovered new exit (range 9) 22300 | -4/Upper Caves | Identified exit to Warlord 22394 | -4/Upper Caves | Attracted the attention of an 0b10 checkpoint 22466 | -4/Upper Caves | Entered Warlord 22483 | -4/Warlord | System corruption cleaned by Quarantine Array 22562 | -4/Warlord | Received a Watcher feed algorithm from an ecstatic Tinkerer 22636 | -4/Warlord | Found Prototype Device 22636 | -4/Warlord | Identified Minesniffer Drone Bay 22725 | -4/Warlord | Visited the Vortex Lab 22728 | -4/Warlord | Found Prototype Energy Gun 22728 | -4/Warlord | Identified Vortex Rifle 22731 | -4/Warlord | Found Vortex Rifle 22746 | -4/Warlord | Warlord's base attacked by MAIN.C 22757 | -4/Warlord | Rebuked by Warlord 22782 | -4/Warlord | Opened Warlord's prototype stash 22784 | -4/Warlord | Found Prototype Processor 22784 | -4/Warlord | Identified Spectral Analyzer 22786 | -4/Warlord | Found Prototype Device 22786 | -4/Warlord | Identified Exp. Focal Shield 22790 | -4/Warlord | Found Ghost Barrier 22796 | -4/Warlord | Found Prototype Reactor 23059 | -4/Warlord | Warlord forces counterattacked 23068 | -4/Warlord | Spotted B-90 Cyclops 23077 | -4/Warlord | Destroyed B-90 Cyclops 23084 | -4/Warlord | Build established: Hacker-Scout 23084 | -4/Warlord | Spotted B-86 Titan 23101 | -4/Warlord | Destroyed 9 combat bots 23145 | -4/Warlord | Lost 3 allies 23146 | -4/Warlord | Spotted B-86 Titan 23147 | -4/Warlord | Spotted Striker 23148 | -4/Warlord | Spotted B-90 Cyclops 23246 | -4/Warlord | Spotted Striker 23247 | -4/Warlord | Spotted Striker 23259 | -4/Warlord | Destroyed Striker 23280 | -4/Warlord | Destroyed 8 combat bots 23285 | -4/Warlord | Lost 10 allies 23347 | -4/Warlord | Spotted Striker 23376 | -4/Warlord | Destroyed 12 combat bots 23388 | -4/Warlord | Lost 6 allies 23421 | -4/Warlord | Warlord base infiltrated, sounded retreat 23480 | -4/Warlord | Destroyed 13 combat bots 23549 | -4/Warlord | Spotted Executioner 23554 | -4/Warlord | Spotted Striker 23554 | -4/Warlord | Spotted Executioner 23558 | -4/Warlord | Destroyed Executioner 23583 | -4/Warlord | Discovered new exit (range 9) 23591 | -4/Warlord | Lost 15 allies 23602 | -4/Warlord | Identified exit to Proximity Caves 23610 | -4/Warlord | Entered Proximity Caves 23678 | -3/Proximity Caves | Attracted the attention of an 0b10 checkpoint 24270 | -3/Proximity Caves | Discovered exit to Research (range 7) 24401 | -3/Proximity Caves | Entered Research 24401 | -3/Research | Evolved 2 slots: Propulsion x1, Utility x1 24402 | -3/Research | Identified exit to Armory 24406 | -3/Research | Loaded intel: 112 machine locations 24407 | -3/Research | Loaded intel: 24 terminal locations 24443 | -3/Research | System corruption reached 10% 24559 | -3/Research | Identified Vortex Chain Reactor 24601 | -3/Research | Revision forces began assault on 0b10 24616 | -3/Research | Met up with Revision 17++ 24795 | -3/Research | Found Prototype Launcher 24795 | -3/Research | Identified Hellfire Missile Launcher 24808 | -3/Research | Repaired Broken Cmb. Gravmag System+? 24961 | -3/Research | Lost 3 allies 24998 | -3/Research | Found Prototype Device 24998 | -3/Research | Identified Exp. Thermal Shield 25006 | -3/Research | Fabricated Cmb. Gravmag System (x2) 25071 | -3/Research | Repaired Broken Smartbomb Launcher? 25072 | -3/Research | Loaded intel: 5 recycling unit locations 25101 | -3/Research | Research terminal network offline 25151 | -3/Research | Build established: Scavenger-Scout 25186 | -3/Research | Discovered new exit (range 4) 25187 | -3/Research | Identified exit to Research 25361 | -3/Research | Found Prototype Device 25361 | -3/Research | Identified Exp. Thermal Defense Suite 25421 | -3/Research | Found Prototype Processor 25421 | -3/Research | Identified Exp. Core Analyzer 25450 | -3/Research | Spotted Striker 25568 | -3/Research | Fabricated Imp. Weapon Shielding (x2) 25641 | -3/Research | Discovered new exit (range 12) 25652 | -3/Research | Identified exit to Quarantine 25902 | -3/Research | Discovered exit to Research (range 22) 25959 | -3/Research | Spotted Executioner 25959 | -3/Research | Spotted Striker 25968 | -3/Research | Spotted Executioner 25983 | -3/Research | Destroyed Striker 25984 | -3/Research | Spotted Striker 26064 | -3/Research | P-80 Master assimilated allied Administrator 8a 26065 | -3/Research | Entered Quarantine 26267 | -3/Quarantine | Cryocooling Duct disabled 26282 | -3/Quarantine | Ambient heat levels rising (+20) 26282 | -3/Quarantine | Non-combat units ordered to evacuate 26292 | -3/Quarantine | Found Alien Artifact 26310 | -3/Quarantine | Found Alien Artifact 26315 | -3/Quarantine | Found Alien Artifact 26315 | -3/Quarantine | Identified Dimensional Node Initializer 26315 | -3/Quarantine | Initialized slip node 26324 | -3/Quarantine | Found Dimensional Node Initializer 26561 | -3/Quarantine | Spotted Alpha 7 26702 | -3/Quarantine | Spotted Fortress 26742 | -3/Quarantine | Discovered new exit (range 6) 26742 | -3/Quarantine | Discovered new exit (range 7) 26744 | -3/Quarantine | Identified exit to Section 7 26746 | -3/Quarantine | Identified exit to Protoforge 26747 | -3/Quarantine | Entered Protoforge 26760 | -3/Protoforge | Spotted Hotshot 26761 | -3/Protoforge | Spotted Hotshot 26793 | -3/Protoforge | Superfortress began startup sequence 26835 | -3/Protoforge | Identified Transdimensional Reconstructor 26847 | -3/Protoforge | Spotted Hotshot 26847 | -3/Protoforge | Spotted Hotshot 26866 | -3/Protoforge | Spotted B-86 Titan 26916 | -3/Protoforge | Spotted Hotshot 26942 | -3/Protoforge | Spotted Hotshot 26982 | -3/Protoforge | Spotted Hotshot 27036 | -3/Protoforge | Spotted AP7-3 27036 | -3/Protoforge | Spotted AP7-3 27069 | -3/Protoforge | Spotted Decapitator 27069 | -3/Protoforge | Spotted Decapitator 27070 | -3/Protoforge | Spotted EXE-6 27070 | -3/Protoforge | Spotted EXE-6 27076 | -3/Protoforge | Self-destructed Last Messages --------------- 27056_ System corrupted: Imp. Weapon Shielding fused. 27056_ Penetrated by Slug. 27060_ K-01 Serf cleans the Machine. 27067_ Mak. Sensor Array destroyed. 27068_ K-01 Serf cleans the Machine. 27071_ System corrupted: Mic. Antimatter Reactor+ rejected. 27071_ Acquired Mic. Antimatter Reactor+. 27073_ K-01 Serf cleans the Machine. 27075_ Decapitator springs to life. 27075_ Mic. Antimatter Reactor+ destroyed. 27075_ FP Insight Station damaged. 27075_ Decapitator springs to life. 27075_ FP Insight Station damaged. 27075_ Knocked back. 27075_ Imp. Quantum Reactor destroyed. 27076_ K-01 Serf cleans the Machine. 27076_ Penetrated by Slug. 27076_ K-01 Serf destroyed. Map ----- +----------------------------------------------------+ | #?????# " """""""""""????????????? | | #####?# " "" """""""""""""???????????? | | "## ### """"" " """"""""""""""""?????????? | | / "" "" " """""""""""""""""????????? | | / "" " "" """"""""""""""""""???????? | | " "" " """"""""""""""""""""""????? | | ### ### "" " """"""""""""""""""""""""??? | | ??###?# " """"""""""""""""""""""""""? | | ??????# "" """"""""""""""""""""""""""" | | "?????# """ " " """"""""""""""""""""""""""" | | ""????# " "" """"""""""""""""""""""""""" | | T"#???# ""77 " """"""""""""""""""""""""""" | | ?"????# " """ """"" " """"""""""""""""""""""""""" | | ??????# "" " """"""""""""""""""""""""""" | | ??????# " """""""""""""""""""""""""" | | ??????# k """""""""""""""""""""""""" | | ??????# """"""" pp" """""""""""""""""""""""""" | | ??????# """ " *%! """"""""""""""""""""""""" | | ??????# " " """"""""""""""""""""""" | | ??????# "" """"""""""""""""""""" | | ??##### "" "" "" """"""""""""""""""" | | ?? # "" "" " "" """"""""""""""""" " | | ?? # "" """ "" """"""""""""""" "" " | | ## # " " """"""""" "" | | # # " "" "" "" "" | | # " " """ "" @ " | | # " """ c " | | # ## "" " " """" | | # " " "" " " " """""" | | # " " " | | # "" " " """ " " "" | | # "" "" " " " c " " " | | ## " "" " ? """" | | ## "" "" " """"" "" ""? " | | ## ?" " " " " ? " | | #?? ? "" "" " ? | | #????? " "" """""""??" | | #????"" "" """"""""""" ??? | | #??? """ " " " """"""?????? | | #??######EE##########################???????? | | #???????###?????????????????????????????????? | | #???????????????????????????????????????????? | | #???????????????????????????????????????????? | | #???????????????????????????????????????????? | | #???????????????????????????????????????????? | | #???????????????????????????????????????????? | | ######???????????????????????????????????????????? | | ?????????????????????????????????????????????????? | | ?????????????????????????????????????????????????? | | ?????????????????????????????????????????????????? | +----------------------------------------------------+ Best States ------------- Heat Dissipation 67 Energy Generation 44 Energy Capacity 400 Matter Stores 519 Matter Capacity 550 Sight Range 24 Robot Scan Range 19 Terrain Scan Range 20 Terrain Scan Density 10 Jamming Range 16 Additional Mass Support 9 Corruption Containment 8 Armor Coverage 1250 Weapon Shielding 66 Weapon Cycling 20 Evasion (%) 66 Targeting Accuracy 6 Target Analysis 8 Core Analysis 8 Recoil Reduction 4 Offensive Hacking 20 Defensive Hacking 20 Item Schematics ----------------- Imp. Weapon Shielding | -8/Recycling | Hacked Imp. Hacking Suite | -6/Factory | Hacked Hyp. Gauss Cannon | -6/Factory | Hacked Cmb. Gravmag System | -6/Factory | Hacked Adv. Sensor Array | -6/Factory | Hacked Combat Drone Bay | -6/Data Miner | Free Lgt. Regenerative Plating | -6/Data Miner | Free Cld. Gravmag System | -6/Data Miner | Free Prc. Energy Filter | -6/Data Miner | Free Hvy. Proton Cannon | -6/Data Miner | Free Adv. Medium Treads | -6/Data Miner | Free Adv. Power Amplifier | -6/Data Miner | Free Railgun | -6/Data Miner | Free Gyrokinetic Inverter | -6/Data Miner | Free Hardcell Cannon | -6/Data Miner | Free HERF Cannon | -6/Data Miner | Free Biometal Medium Treads | -6/Data Miner | Free Multitool | -5/Factory | Scanalyzed Launcher Loader | -5/Factory | Hacked Centrium Medium Armor Plating | -4/Factory | Scanalyzed Smartbomb Launcher | -3/Research | Scanalyzed Adv. Powered Armor | -3/Research | Scanalyzed Robot Schematics ------------------ B-60 Warrior | -6/Data Miner | Free R-10 Processor | -6/Data Miner | Free B-48 Gladiator | -6/Data Miner | Free X-77 Beamer | -6/Data Miner | Free G-50 Soldier | -6/Data Miner | Free Fabricated ------------ Cmb. Gravmag System | x2 | -6/Factory Cmb. Gravmag System | x2 | -6/Factory Adv. Sensor Array | x2 | -6/Factory Hyp. Gauss Cannon | x2 | -5/Factory Cmb. Gravmag System | x2 | -3/Research Imp. Weapon Shielding | x2 | -3/Research Repaired ---------- Lgt. Treads | 56% | -10/Materials Micro-nuke Launcher | 65% | -6/Factory | Broken Cmb. Gravmag System | 3% | -5/Factory Adv. Powered Armor | 5% | -5/Factory | Broken Adv. Powered Armor | 18% | -4/Factory Cmb. Gravmag System | 18% | -3/Research | Broken Smartbomb Launcher | 17% | -3/Research | Broken Studied --------- Lgt. Fission Core | -6/Factory | Hacked Cesium-ion Thruster | -6/Factory | Hacked Imp. Gravmag System | -6/Factory | Hacked Gravmag Array | -6/Factory | Hacked Gravmag System | -6/Factory | Hacked Mic. Fission Core | -5/Factory | Hacked Cmb. Gravmag System | -4/Factory | Hacked Lgt. Antimatter Reactor | -4/Factory | Hacked Hyp. Mass Driver | -3/Research | Hacked Mic. Antimatter Reactor | -3/Research | Hacked Alien Tech Used ----------------- Dimensional Node Initializer Achievements -------------- Deconstruction Equal Opportunity Bot Protector Reappropriation This Is My Hole Challenges ------------ None Game ------ Seed ChromionMiniClaymores Manual? 0 Play Time 04:51:19 Cumulative 633.2 hours Start 2026.08.03 @ 17:52:14 End 2026.08.05 @ 04:21:01 Sessions 17 Manual Loads 0 Difficulty Rogue Special Mode None Game No. 564 Rogue 528 Adventurer 36 Explorer 0 Win Type - Total 8 Types 2/2/0/1/1/0/0/2/0/0 Lore% 85 Gallery% 74 Achievement% 68 Wizard Run 0 Options --------- Layout 2 ASCII 0 Keyboard 0 Movement Numpad Keybinds 0 Fullscreen 1 Font 48/Smallcaps Map View 50x44 Zoom Use 0% Tactical HUD 1 Map Filters NONE Filters NONE Steam 1 RUN: 927f7194-129e-40e5-a686-2a79523eb126